{"text_format":"1","workbook":"xlsx","n_sheets":4,"sheets":["Comentarios","Contenido RETSIT gral","Contenido RETSIT esp","Hoja1"],"not_rendered":{"charts":0,"images":0,"macros":1,"external_links":0,"defined_names":1,"comments":0,"pivot_tables":0},"unopened":[],"bounds":{"document_bytes":16777216,"sheet_cells":100000,"rows_first":2000,"rows_last":500,"rows_between":2000,"halvings":0,"cell_chars":16384,"cell_head_chars":4096},"cells_cut":0,"cells_raw":0,"read":"whole","date_system":"1900"}

{"sheet":"Comentarios","index":0,"n_rows":101,"n_cols":7,"rows_kept":101,"cut":false,"hidden":false,"merged":[[13,0,13,6],[14,1,14,6],[15,1,15,6],[16,0,16,6],[4,1,4,6],[8,0,8,6],[9,1,9,6],[10,1,10,6],[11,1,11,6],[12,1,12,6],[1,0,2,6],[3,1,3,6],[5,1,5,6],[6,1,6,6],[7,1,7,6]]}
[]
["FORMULARIO PARA RECEPCIÓN DE COMENTARIOS DE LA CIUDADANÍA Y PARTES INTERESADAS"]
[]
["Sector: ","Energía"]
["Proyecto: Resolución","\"Por la cual se expide el nuevo Reglamento Técnico de Instalaciones Térmicas - RETSIT\""]
["Fecha inicio:","25 de abril de 2023"]
["Fecha  fin: ","09 de mayo de 2023"]
["Fecha Comentario: "]
["Datos de contacto"]
["Nombre:"]
["Empresa:"]
["Correo electrónico:"]
["Telefono:"]
[]
["NOTA 1","En los casos que su comentario sea ajustar, modificar o eliminar algún ítem de la propuesta presentada, sugerimos incluir su debida justificación técnica"]
["NOTA 2","Favor incluir solo texto, en caso de considerar necesario el envío de información adicional como gráficos o tablas, agradecemos enviarlo al correo electrónico pciudadana@minenergia.gov.co indicando en el asunto: \"Comentarios al Proyecto de Resolución por la cual se expide el nuevo Reglamento Técnico de Instalaciones Térmicas - RETSIT\""]
[]
["TIPO DE COMENTARIO\n\n\n(De la lista desplegable seleccione si su comentario es Editorial o Técnico)","1er REFERENTE DEL ACTO ADMINISTRATIVO\n\n(De la lista desplegable seleccione alguno de los Anexos, la Resolución, o la Memoria Justificativa)","TEMA DE OBSERVACIÓN DEL 1er REFERENTE DEL ACTO ADMINISTRATIVO","2do REFERENTE DEL ACTO ADMINISTRATIVO\n\n(De la lista desplegable seleccione el Título, Artículo, Númeral, o Capítulo del que hará el comentario) ","TEMA DE OBSERVACIÓN DEL 2do REFERENTE DEL ACTO ADMINISTRATIVO","Comentario detallado y Propuesta de Modificación\n(Ver Notas 1 y 2)","Justificación normativa"]
[null,null,{"$f":"IFERROR(VLOOKUP(B19,'Contenido RETSIT esp'!$A$2:$B$145,2,FALSE),\"\")","v":""},null,{"$f":"+_xlfn.IFNA(+IF(B19=\"ANEXO1\",VLOOKUP(D19,'Contenido RETSIT esp'!$A$3:$B$24,2,FALSE),IF(B19=\"ANEXO2\",VLOOKUP(D19,'Contenido RETSIT esp'!$A$26:$B$98,2,FALSE),IF(B19=\"ANEXO3\",VLOOKUP(D19,'Contenido RETSIT esp'!$A$100:$B$105,2,FALSE),IF(B19=\"ANEXO4\",VLOOKUP(D19,'Contenido RETSIT esp'!#REF!,2,FALSE),IF(B19=\"RESOLUCIÓN\",VLOOKUP(D19,'Contenido RETSIT esp'!$A$107:$B$114,2,FALSE),IF(B19=\"MEMORIAJUSTIFICATIVA\",VLOOKUP(D19,'Contenido RETSIT esp'!$A$114:$B$145,2,FALSE),\"\")))))),\"\")","v":""}]
[null,null,{"$f":"IFERROR(VLOOKUP(B20,'Contenido RETSIT esp'!$A$2:$B$145,2,FALSE),\"\")","v":""},null,{"$f":"+_xlfn.IFNA(+IF(B20=\"ANEXO1\",VLOOKUP(D20,'Contenido RETSIT esp'!$A$3:$B$24,2,FALSE),IF(B20=\"ANEXO2\",VLOOKUP(D20,'Contenido RETSIT esp'!$A$26:$B$98,2,FALSE),IF(B20=\"ANEXO3\",VLOOKUP(D20,'Contenido RETSIT esp'!$A$100:$B$105,2,FALSE),IF(B20=\"ANEXO4\",VLOOKUP(D20,'Contenido RETSIT esp'!#REF!,2,FALSE),IF(B20=\"RESOLUCIÓN\",VLOOKUP(D20,'Contenido RETSIT esp'!$A$107:$B$114,2,FALSE),IF(B20=\"MEMORIAJUSTIFICATIVA\",VLOOKUP(D20,'Contenido RETSIT esp'!$A$114:$B$145,2,FALSE),\"\")))))),\"\")","v":""}]
[null,null,{"$f":"IFERROR(VLOOKUP(B21,'Contenido RETSIT esp'!$A$2:$B$145,2,FALSE),\"\")","v":""},null,{"$f":"+_xlfn.IFNA(+IF(B21=\"ANEXO1\",VLOOKUP(D21,'Contenido RETSIT esp'!$A$3:$B$24,2,FALSE),IF(B21=\"ANEXO2\",VLOOKUP(D21,'Contenido RETSIT esp'!$A$26:$B$98,2,FALSE),IF(B21=\"ANEXO3\",VLOOKUP(D21,'Contenido RETSIT esp'!$A$100:$B$105,2,FALSE),IF(B21=\"ANEXO4\",VLOOKUP(D21,'Contenido RETSIT esp'!#REF!,2,FALSE),IF(B21=\"RESOLUCIÓN\",VLOOKUP(D21,'Contenido RETSIT esp'!$A$107:$B$114,2,FALSE),IF(B21=\"MEMORIAJUSTIFICATIVA\",VLOOKUP(D21,'Contenido RETSIT esp'!$A$114:$B$145,2,FALSE),\"\")))))),\"\")","v":""}]
[null,null,{"$f":"IFERROR(VLOOKUP(B22,'Contenido RETSIT esp'!$A$2:$B$145,2,FALSE),\"\")","v":""},null,{"$f":"+_xlfn.IFNA(+IF(B22=\"ANEXO1\",VLOOKUP(D22,'Contenido RETSIT esp'!$A$3:$B$24,2,FALSE),IF(B22=\"ANEXO2\",VLOOKUP(D22,'Contenido RETSIT esp'!$A$26:$B$98,2,FALSE),IF(B22=\"ANEXO3\",VLOOKUP(D22,'Contenido RETSIT esp'!$A$100:$B$105,2,FALSE),IF(B22=\"ANEXO4\",VLOOKUP(D22,'Contenido RETSIT esp'!#REF!,2,FALSE),IF(B22=\"RESOLUCIÓN\",VLOOKUP(D22,'Contenido RETSIT esp'!$A$107:$B$114,2,FALSE),IF(B22=\"MEMORIAJUSTIFICATIVA\",VLOOKUP(D22,'Contenido RETSIT esp'!$A$114:$B$145,2,FALSE),\"\")))))),\"\")","v":""}]
[null,null,{"$f":"IFERROR(VLOOKUP(B23,'Contenido RETSIT esp'!$A$2:$B$145,2,FALSE),\"\")","v":""},null,{"$f":"+_xlfn.IFNA(+IF(B23=\"ANEXO1\",VLOOKUP(D23,'Contenido RETSIT esp'!$A$3:$B$24,2,FALSE),IF(B23=\"ANEXO2\",VLOOKUP(D23,'Contenido RETSIT esp'!$A$26:$B$98,2,FALSE),IF(B23=\"ANEXO3\",VLOOKUP(D23,'Contenido RETSIT esp'!$A$100:$B$105,2,FALSE),IF(B23=\"ANEXO4\",VLOOKUP(D23,'Contenido RETSIT esp'!#REF!,2,FALSE),IF(B23=\"RESOLUCIÓN\",VLOOKUP(D23,'Contenido RETSIT esp'!$A$107:$B$114,2,FALSE),IF(B23=\"MEMORIAJUSTIFICATIVA\",VLOOKUP(D23,'Contenido RETSIT esp'!$A$114:$B$145,2,FALSE),\"\")))))),\"\")","v":""}]
[null,null,{"$f":"IFERROR(VLOOKUP(B24,'Contenido RETSIT esp'!$A$2:$B$145,2,FALSE),\"\")","v":""},null,{"$f":"+_xlfn.IFNA(+IF(B24=\"ANEXO1\",VLOOKUP(D24,'Contenido RETSIT esp'!$A$3:$B$24,2,FALSE),IF(B24=\"ANEXO2\",VLOOKUP(D24,'Contenido RETSIT esp'!$A$26:$B$98,2,FALSE),IF(B24=\"ANEXO3\",VLOOKUP(D24,'Contenido RETSIT esp'!$A$100:$B$105,2,FALSE),IF(B24=\"ANEXO4\",VLOOKUP(D24,'Contenido RETSIT esp'!#REF!,2,FALSE),IF(B24=\"RESOLUCIÓN\",VLOOKUP(D24,'Contenido RETSIT esp'!$A$107:$B$114,2,FALSE),IF(B24=\"MEMORIAJUSTIFICATIVA\",VLOOKUP(D24,'Contenido RETSIT esp'!$A$114:$B$145,2,FALSE),\"\")))))),\"\")","v":""}]
[null,null,{"$f":"IFERROR(VLOOKUP(B25,'Contenido RETSIT esp'!$A$2:$B$145,2,FALSE),\"\")","v":""},null,{"$f":"+_xlfn.IFNA(+IF(B25=\"ANEXO1\",VLOOKUP(D25,'Contenido RETSIT esp'!$A$3:$B$24,2,FALSE),IF(B25=\"ANEXO2\",VLOOKUP(D25,'Contenido RETSIT esp'!$A$26:$B$98,2,FALSE),IF(B25=\"ANEXO3\",VLOOKUP(D25,'Contenido RETSIT esp'!$A$100:$B$105,2,FALSE),IF(B25=\"ANEXO4\",VLOOKUP(D25,'Contenido RETSIT esp'!#REF!,2,FALSE),IF(B25=\"RESOLUCIÓN\",VLOOKUP(D25,'Contenido RETSIT esp'!$A$107:$B$114,2,FALSE),IF(B25=\"MEMORIAJUSTIFICATIVA\",VLOOKUP(D25,'Contenido RETSIT esp'!$A$114:$B$145,2,FALSE),\"\")))))),\"\")","v":""}]
[null,null,{"$f":"IFERROR(VLOOKUP(B26,'Contenido RETSIT esp'!$A$2:$B$145,2,FALSE),\"\")","v":""},null,{"$f":"+_xlfn.IFNA(+IF(B26=\"ANEXO1\",VLOOKUP(D26,'Contenido RETSIT esp'!$A$3:$B$24,2,FALSE),IF(B26=\"ANEXO2\",VLOOKUP(D26,'Contenido RETSIT esp'!$A$26:$B$98,2,FALSE),IF(B26=\"ANEXO3\",VLOOKUP(D26,'Contenido RETSIT esp'!$A$100:$B$105,2,FALSE),IF(B26=\"ANEXO4\",VLOOKUP(D26,'Contenido RETSIT esp'!#REF!,2,FALSE),IF(B26=\"RESOLUCIÓN\",VLOOKUP(D26,'Contenido RETSIT esp'!$A$107:$B$114,2,FALSE),IF(B26=\"MEMORIAJUSTIFICATIVA\",VLOOKUP(D26,'Contenido RETSIT esp'!$A$114:$B$145,2,FALSE),\"\")))))),\"\")","v":""}]
[null,null,{"$f":"IFERROR(VLOOKUP(B27,'Contenido RETSIT esp'!$A$2:$B$145,2,FALSE),\"\")","v":""},null,{"$f":"+_xlfn.IFNA(+IF(B27=\"ANEXO1\",VLOOKUP(D27,'Contenido RETSIT esp'!$A$3:$B$24,2,FALSE),IF(B27=\"ANEXO2\",VLOOKUP(D27,'Contenido RETSIT esp'!$A$26:$B$98,2,FALSE),IF(B27=\"ANEXO3\",VLOOKUP(D27,'Contenido RETSIT esp'!$A$100:$B$105,2,FALSE),IF(B27=\"ANEXO4\",VLOOKUP(D27,'Contenido RETSIT esp'!#REF!,2,FALSE),IF(B27=\"RESOLUCIÓN\",VLOOKUP(D27,'Contenido RETSIT esp'!$A$107:$B$114,2,FALSE),IF(B27=\"MEMORIAJUSTIFICATIVA\",VLOOKUP(D27,'Contenido RETSIT esp'!$A$114:$B$145,2,FALSE),\"\")))))),\"\")","v":""}]
[null,null,{"$f":"IFERROR(VLOOKUP(B28,'Contenido RETSIT esp'!$A$2:$B$145,2,FALSE),\"\")","v":""},null,{"$f":"+_xlfn.IFNA(+IF(B28=\"ANEXO1\",VLOOKUP(D28,'Contenido RETSIT esp'!$A$3:$B$24,2,FALSE),IF(B28=\"ANEXO2\",VLOOKUP(D28,'Contenido RETSIT esp'!$A$26:$B$98,2,FALSE),IF(B28=\"ANEXO3\",VLOOKUP(D28,'Contenido RETSIT esp'!$A$100:$B$105,2,FALSE),IF(B28=\"ANEXO4\",VLOOKUP(D28,'Contenido RETSIT esp'!#REF!,2,FALSE),IF(B28=\"RESOLUCIÓN\",VLOOKUP(D28,'Contenido RETSIT esp'!$A$107:$B$114,2,FALSE),IF(B28=\"MEMORIAJUSTIFICATIVA\",VLOOKUP(D28,'Contenido RETSIT esp'!$A$114:$B$145,2,FALSE),\"\")))))),\"\")","v":""}]
[null,null,{"$f":"IFERROR(VLOOKUP(B29,'Contenido RETSIT esp'!$A$2:$B$145,2,FALSE),\"\")","v":""},null,{"$f":"+_xlfn.IFNA(+IF(B29=\"ANEXO1\",VLOOKUP(D29,'Contenido RETSIT esp'!$A$3:$B$24,2,FALSE),IF(B29=\"ANEXO2\",VLOOKUP(D29,'Contenido RETSIT esp'!$A$26:$B$98,2,FALSE),IF(B29=\"ANEXO3\",VLOOKUP(D29,'Contenido RETSIT esp'!$A$100:$B$105,2,FALSE),IF(B29=\"ANEXO4\",VLOOKUP(D29,'Contenido RETSIT esp'!#REF!,2,FALSE),IF(B29=\"RESOLUCIÓN\",VLOOKUP(D29,'Contenido RETSIT esp'!$A$107:$B$114,2,FALSE),IF(B29=\"MEMORIAJUSTIFICATIVA\",VLOOKUP(D29,'Contenido RETSIT esp'!$A$114:$B$145,2,FALSE),\"\")))))),\"\")","v":""}]
[null,null,{"$f":"IFERROR(VLOOKUP(B30,'Contenido RETSIT esp'!$A$2:$B$145,2,FALSE),\"\")","v":""},null,{"$f":"+_xlfn.IFNA(+IF(B30=\"ANEXO1\",VLOOKUP(D30,'Contenido RETSIT esp'!$A$3:$B$24,2,FALSE),IF(B30=\"ANEXO2\",VLOOKUP(D30,'Contenido RETSIT esp'!$A$26:$B$98,2,FALSE),IF(B30=\"ANEXO3\",VLOOKUP(D30,'Contenido RETSIT esp'!$A$100:$B$105,2,FALSE),IF(B30=\"ANEXO4\",VLOOKUP(D30,'Contenido RETSIT esp'!#REF!,2,FALSE),IF(B30=\"RESOLUCIÓN\",VLOOKUP(D30,'Contenido RETSIT esp'!$A$107:$B$114,2,FALSE),IF(B30=\"MEMORIAJUSTIFICATIVA\",VLOOKUP(D30,'Contenido RETSIT esp'!$A$114:$B$145,2,FALSE),\"\")))))),\"\")","v":""}]
[null,null,{"$f":"IFERROR(VLOOKUP(B31,'Contenido RETSIT esp'!$A$2:$B$145,2,FALSE),\"\")","v":""},null,{"$f":"+_xlfn.IFNA(+IF(B31=\"ANEXO1\",VLOOKUP(D31,'Contenido RETSIT esp'!$A$3:$B$24,2,FALSE),IF(B31=\"ANEXO2\",VLOOKUP(D31,'Contenido RETSIT esp'!$A$26:$B$98,2,FALSE),IF(B31=\"ANEXO3\",VLOOKUP(D31,'Contenido RETSIT esp'!$A$100:$B$105,2,FALSE),IF(B31=\"ANEXO4\",VLOOKUP(D31,'Contenido RETSIT esp'!#REF!,2,FALSE),IF(B31=\"RESOLUCIÓN\",VLOOKUP(D31,'Contenido RETSIT esp'!$A$107:$B$114,2,FALSE),IF(B31=\"MEMORIAJUSTIFICATIVA\",VLOOKUP(D31,'Contenido RETSIT esp'!$A$114:$B$145,2,FALSE),\"\")))))),\"\")","v":""}]
[null,null,{"$f":"IFERROR(VLOOKUP(B32,'Contenido RETSIT esp'!$A$2:$B$145,2,FALSE),\"\")","v":""},null,{"$f":"+_xlfn.IFNA(+IF(B32=\"ANEXO1\",VLOOKUP(D32,'Contenido RETSIT esp'!$A$3:$B$24,2,FALSE),IF(B32=\"ANEXO2\",VLOOKUP(D32,'Contenido RETSIT esp'!$A$26:$B$98,2,FALSE),IF(B32=\"ANEXO3\",VLOOKUP(D32,'Contenido RETSIT esp'!$A$100:$B$105,2,FALSE),IF(B32=\"ANEXO4\",VLOOKUP(D32,'Contenido RETSIT esp'!#REF!,2,FALSE),IF(B32=\"RESOLUCIÓN\",VLOOKUP(D32,'Contenido RETSIT esp'!$A$107:$B$114,2,FALSE),IF(B32=\"MEMORIAJUSTIFICATIVA\",VLOOKUP(D32,'Contenido RETSIT esp'!$A$114:$B$145,2,FALSE),\"\")))))),\"\")","v":""}]
[null,null,{"$f":"IFERROR(VLOOKUP(B33,'Contenido RETSIT esp'!$A$2:$B$145,2,FALSE),\"\")","v":""},null,{"$f":"+_xlfn.IFNA(+IF(B33=\"ANEXO1\",VLOOKUP(D33,'Contenido RETSIT esp'!$A$3:$B$24,2,FALSE),IF(B33=\"ANEXO2\",VLOOKUP(D33,'Contenido RETSIT esp'!$A$26:$B$98,2,FALSE),IF(B33=\"ANEXO3\",VLOOKUP(D33,'Contenido RETSIT esp'!$A$100:$B$105,2,FALSE),IF(B33=\"ANEXO4\",VLOOKUP(D33,'Contenido RETSIT esp'!#REF!,2,FALSE),IF(B33=\"RESOLUCIÓN\",VLOOKUP(D33,'Contenido RETSIT esp'!$A$107:$B$114,2,FALSE),IF(B33=\"MEMORIAJUSTIFICATIVA\",VLOOKUP(D33,'Contenido RETSIT esp'!$A$114:$B$145,2,FALSE),\"\")))))),\"\")","v":""}]
[null,null,{"$f":"IFERROR(VLOOKUP(B34,'Contenido RETSIT esp'!$A$2:$B$145,2,FALSE),\"\")","v":""},null,{"$f":"+_xlfn.IFNA(+IF(B34=\"ANEXO1\",VLOOKUP(D34,'Contenido RETSIT esp'!$A$3:$B$24,2,FALSE),IF(B34=\"ANEXO2\",VLOOKUP(D34,'Contenido RETSIT esp'!$A$26:$B$98,2,FALSE),IF(B34=\"ANEXO3\",VLOOKUP(D34,'Contenido RETSIT esp'!$A$100:$B$105,2,FALSE),IF(B34=\"ANEXO4\",VLOOKUP(D34,'Contenido RETSIT esp'!#REF!,2,FALSE),IF(B34=\"RESOLUCIÓN\",VLOOKUP(D34,'Contenido RETSIT esp'!$A$107:$B$114,2,FALSE),IF(B34=\"MEMORIAJUSTIFICATIVA\",VLOOKUP(D34,'Contenido RETSIT esp'!$A$114:$B$145,2,FALSE),\"\")))))),\"\")","v":""}]
[null,null,{"$f":"IFERROR(VLOOKUP(B35,'Contenido RETSIT esp'!$A$2:$B$145,2,FALSE),\"\")","v":""},null,{"$f":"+_xlfn.IFNA(+IF(B35=\"ANEXO1\",VLOOKUP(D35,'Contenido RETSIT esp'!$A$3:$B$24,2,FALSE),IF(B35=\"ANEXO2\",VLOOKUP(D35,'Contenido RETSIT esp'!$A$26:$B$98,2,FALSE),IF(B35=\"ANEXO3\",VLOOKUP(D35,'Contenido RETSIT esp'!$A$100:$B$105,2,FALSE),IF(B35=\"ANEXO4\",VLOOKUP(D35,'Contenido RETSIT esp'!#REF!,2,FALSE),IF(B35=\"RESOLUCIÓN\",VLOOKUP(D35,'Contenido RETSIT esp'!$A$107:$B$114,2,FALSE),IF(B35=\"MEMORIAJUSTIFICATIVA\",VLOOKUP(D35,'Contenido RETSIT esp'!$A$114:$B$145,2,FALSE),\"\")))))),\"\")","v":""}]
[null,null,{"$f":"IFERROR(VLOOKUP(B36,'Contenido RETSIT esp'!$A$2:$B$145,2,FALSE),\"\")","v":""},null,{"$f":"+_xlfn.IFNA(+IF(B36=\"ANEXO1\",VLOOKUP(D36,'Contenido RETSIT esp'!$A$3:$B$24,2,FALSE),IF(B36=\"ANEXO2\",VLOOKUP(D36,'Contenido RETSIT esp'!$A$26:$B$98,2,FALSE),IF(B36=\"ANEXO3\",VLOOKUP(D36,'Contenido RETSIT esp'!$A$100:$B$105,2,FALSE),IF(B36=\"ANEXO4\",VLOOKUP(D36,'Contenido RETSIT esp'!#REF!,2,FALSE),IF(B36=\"RESOLUCIÓN\",VLOOKUP(D36,'Contenido RETSIT esp'!$A$107:$B$114,2,FALSE),IF(B36=\"MEMORIAJUSTIFICATIVA\",VLOOKUP(D36,'Contenido RETSIT esp'!$A$114:$B$145,2,FALSE),\"\")))))),\"\")","v":""}]
[null,null,{"$f":"IFERROR(VLOOKUP(B37,'Contenido RETSIT esp'!$A$2:$B$145,2,FALSE),\"\")","v":""},null,{"$f":"+_xlfn.IFNA(+IF(B37=\"ANEXO1\",VLOOKUP(D37,'Contenido RETSIT esp'!$A$3:$B$24,2,FALSE),IF(B37=\"ANEXO2\",VLOOKUP(D37,'Contenido RETSIT esp'!$A$26:$B$98,2,FALSE),IF(B37=\"ANEXO3\",VLOOKUP(D37,'Contenido RETSIT esp'!$A$100:$B$105,2,FALSE),IF(B37=\"ANEXO4\",VLOOKUP(D37,'Contenido RETSIT esp'!#REF!,2,FALSE),IF(B37=\"RESOLUCIÓN\",VLOOKUP(D37,'Contenido RETSIT esp'!$A$107:$B$114,2,FALSE),IF(B37=\"MEMORIAJUSTIFICATIVA\",VLOOKUP(D37,'Contenido RETSIT esp'!$A$114:$B$145,2,FALSE),\"\")))))),\"\")","v":""}]
[null,null,{"$f":"IFERROR(VLOOKUP(B38,'Contenido RETSIT esp'!$A$2:$B$145,2,FALSE),\"\")","v":""},null,{"$f":"+_xlfn.IFNA(+IF(B38=\"ANEXO1\",VLOOKUP(D38,'Contenido RETSIT esp'!$A$3:$B$24,2,FALSE),IF(B38=\"ANEXO2\",VLOOKUP(D38,'Contenido RETSIT esp'!$A$26:$B$98,2,FALSE),IF(B38=\"ANEXO3\",VLOOKUP(D38,'Contenido RETSIT esp'!$A$100:$B$105,2,FALSE),IF(B38=\"ANEXO4\",VLOOKUP(D38,'Contenido RETSIT esp'!#REF!,2,FALSE),IF(B38=\"RESOLUCIÓN\",VLOOKUP(D38,'Contenido RETSIT esp'!$A$107:$B$114,2,FALSE),IF(B38=\"MEMORIAJUSTIFICATIVA\",VLOOKUP(D38,'Contenido RETSIT esp'!$A$114:$B$145,2,FALSE),\"\")))))),\"\")","v":""}]
[null,null,{"$f":"IFERROR(VLOOKUP(B39,'Contenido RETSIT esp'!$A$2:$B$145,2,FALSE),\"\")","v":""},null,{"$f":"+_xlfn.IFNA(+IF(B39=\"ANEXO1\",VLOOKUP(D39,'Contenido RETSIT esp'!$A$3:$B$24,2,FALSE),IF(B39=\"ANEXO2\",VLOOKUP(D39,'Contenido RETSIT esp'!$A$26:$B$98,2,FALSE),IF(B39=\"ANEXO3\",VLOOKUP(D39,'Contenido RETSIT esp'!$A$100:$B$105,2,FALSE),IF(B39=\"ANEXO4\",VLOOKUP(D39,'Contenido RETSIT esp'!#REF!,2,FALSE),IF(B39=\"RESOLUCIÓN\",VLOOKUP(D39,'Contenido RETSIT esp'!$A$107:$B$114,2,FALSE),IF(B39=\"MEMORIAJUSTIFICATIVA\",VLOOKUP(D39,'Contenido RETSIT esp'!$A$114:$B$145,2,FALSE),\"\")))))),\"\")","v":""}]
[null,null,{"$f":"IFERROR(VLOOKUP(B40,'Contenido RETSIT esp'!$A$2:$B$145,2,FALSE),\"\")","v":""},null,{"$f":"+_xlfn.IFNA(+IF(B40=\"ANEXO1\",VLOOKUP(D40,'Contenido RETSIT esp'!$A$3:$B$24,2,FALSE),IF(B40=\"ANEXO2\",VLOOKUP(D40,'Contenido RETSIT esp'!$A$26:$B$98,2,FALSE),IF(B40=\"ANEXO3\",VLOOKUP(D40,'Contenido RETSIT esp'!$A$100:$B$105,2,FALSE),IF(B40=\"ANEXO4\",VLOOKUP(D40,'Contenido RETSIT esp'!#REF!,2,FALSE),IF(B40=\"RESOLUCIÓN\",VLOOKUP(D40,'Contenido RETSIT esp'!$A$107:$B$114,2,FALSE),IF(B40=\"MEMORIAJUSTIFICATIVA\",VLOOKUP(D40,'Contenido RETSIT esp'!$A$114:$B$145,2,FALSE),\"\")))))),\"\")","v":""}]
[null,null,{"$f":"IFERROR(VLOOKUP(B41,'Contenido RETSIT esp'!$A$2:$B$145,2,FALSE),\"\")","v":""},null,{"$f":"+_xlfn.IFNA(+IF(B41=\"ANEXO1\",VLOOKUP(D41,'Contenido RETSIT esp'!$A$3:$B$24,2,FALSE),IF(B41=\"ANEXO2\",VLOOKUP(D41,'Contenido RETSIT esp'!$A$26:$B$98,2,FALSE),IF(B41=\"ANEXO3\",VLOOKUP(D41,'Contenido RETSIT esp'!$A$100:$B$105,2,FALSE),IF(B41=\"ANEXO4\",VLOOKUP(D41,'Contenido RETSIT esp'!#REF!,2,FALSE),IF(B41=\"RESOLUCIÓN\",VLOOKUP(D41,'Contenido RETSIT esp'!$A$107:$B$114,2,FALSE),IF(B41=\"MEMORIAJUSTIFICATIVA\",VLOOKUP(D41,'Contenido RETSIT esp'!$A$114:$B$145,2,FALSE),\"\")))))),\"\")","v":""}]
[null,null,{"$f":"IFERROR(VLOOKUP(B42,'Contenido RETSIT esp'!$A$2:$B$145,2,FALSE),\"\")","v":""},null,{"$f":"+_xlfn.IFNA(+IF(B42=\"ANEXO1\",VLOOKUP(D42,'Contenido RETSIT esp'!$A$3:$B$24,2,FALSE),IF(B42=\"ANEXO2\",VLOOKUP(D42,'Contenido RETSIT esp'!$A$26:$B$98,2,FALSE),IF(B42=\"ANEXO3\",VLOOKUP(D42,'Contenido RETSIT esp'!$A$100:$B$105,2,FALSE),IF(B42=\"ANEXO4\",VLOOKUP(D42,'Contenido RETSIT esp'!#REF!,2,FALSE),IF(B42=\"RESOLUCIÓN\",VLOOKUP(D42,'Contenido RETSIT esp'!$A$107:$B$114,2,FALSE),IF(B42=\"MEMORIAJUSTIFICATIVA\",VLOOKUP(D42,'Contenido RETSIT esp'!$A$114:$B$145,2,FALSE),\"\")))))),\"\")","v":""}]
[null,null,{"$f":"IFERROR(VLOOKUP(B43,'Contenido RETSIT esp'!$A$2:$B$145,2,FALSE),\"\")","v":""},null,{"$f":"+_xlfn.IFNA(+IF(B43=\"ANEXO1\",VLOOKUP(D43,'Contenido RETSIT esp'!$A$3:$B$24,2,FALSE),IF(B43=\"ANEXO2\",VLOOKUP(D43,'Contenido RETSIT esp'!$A$26:$B$98,2,FALSE),IF(B43=\"ANEXO3\",VLOOKUP(D43,'Contenido RETSIT esp'!$A$100:$B$105,2,FALSE),IF(B43=\"ANEXO4\",VLOOKUP(D43,'Contenido RETSIT esp'!#REF!,2,FALSE),IF(B43=\"RESOLUCIÓN\",VLOOKUP(D43,'Contenido RETSIT esp'!$A$107:$B$114,2,FALSE),IF(B43=\"MEMORIAJUSTIFICATIVA\",VLOOKUP(D43,'Contenido RETSIT esp'!$A$114:$B$145,2,FALSE),\"\")))))),\"\")","v":""}]
[null,null,{"$f":"IFERROR(VLOOKUP(B44,'Contenido RETSIT esp'!$A$2:$B$145,2,FALSE),\"\")","v":""},null,{"$f":"+_xlfn.IFNA(+IF(B44=\"ANEXO1\",VLOOKUP(D44,'Contenido RETSIT esp'!$A$3:$B$24,2,FALSE),IF(B44=\"ANEXO2\",VLOOKUP(D44,'Contenido RETSIT esp'!$A$26:$B$98,2,FALSE),IF(B44=\"ANEXO3\",VLOOKUP(D44,'Contenido RETSIT esp'!$A$100:$B$105,2,FALSE),IF(B44=\"ANEXO4\",VLOOKUP(D44,'Contenido RETSIT esp'!#REF!,2,FALSE),IF(B44=\"RESOLUCIÓN\",VLOOKUP(D44,'Contenido RETSIT esp'!$A$107:$B$114,2,FALSE),IF(B44=\"MEMORIAJUSTIFICATIVA\",VLOOKUP(D44,'Contenido RETSIT esp'!$A$114:$B$145,2,FALSE),\"\")))))),\"\")","v":""}]
[null,null,{"$f":"IFERROR(VLOOKUP(B45,'Contenido RETSIT esp'!$A$2:$B$145,2,FALSE),\"\")","v":""},null,{"$f":"+_xlfn.IFNA(+IF(B45=\"ANEXO1\",VLOOKUP(D45,'Contenido RETSIT esp'!$A$3:$B$24,2,FALSE),IF(B45=\"ANEXO2\",VLOOKUP(D45,'Contenido RETSIT esp'!$A$26:$B$98,2,FALSE),IF(B45=\"ANEXO3\",VLOOKUP(D45,'Contenido RETSIT esp'!$A$100:$B$105,2,FALSE),IF(B45=\"ANEXO4\",VLOOKUP(D45,'Contenido RETSIT esp'!#REF!,2,FALSE),IF(B45=\"RESOLUCIÓN\",VLOOKUP(D45,'Contenido RETSIT esp'!$A$107:$B$114,2,FALSE),IF(B45=\"MEMORIAJUSTIFICATIVA\",VLOOKUP(D45,'Contenido RETSIT esp'!$A$114:$B$145,2,FALSE),\"\")))))),\"\")","v":""}]
[null,null,{"$f":"IFERROR(VLOOKUP(B46,'Contenido RETSIT esp'!$A$2:$B$145,2,FALSE),\"\")","v":""},null,{"$f":"+_xlfn.IFNA(+IF(B46=\"ANEXO1\",VLOOKUP(D46,'Contenido RETSIT esp'!$A$3:$B$24,2,FALSE),IF(B46=\"ANEXO2\",VLOOKUP(D46,'Contenido RETSIT esp'!$A$26:$B$98,2,FALSE),IF(B46=\"ANEXO3\",VLOOKUP(D46,'Contenido RETSIT esp'!$A$100:$B$105,2,FALSE),IF(B46=\"ANEXO4\",VLOOKUP(D46,'Contenido RETSIT esp'!#REF!,2,FALSE),IF(B46=\"RESOLUCIÓN\",VLOOKUP(D46,'Contenido RETSIT esp'!$A$107:$B$114,2,FALSE),IF(B46=\"MEMORIAJUSTIFICATIVA\",VLOOKUP(D46,'Contenido RETSIT esp'!$A$114:$B$145,2,FALSE),\"\")))))),\"\")","v":""}]
[null,null,{"$f":"IFERROR(VLOOKUP(B47,'Contenido RETSIT esp'!$A$2:$B$145,2,FALSE),\"\")","v":""},null,{"$f":"+_xlfn.IFNA(+IF(B47=\"ANEXO1\",VLOOKUP(D47,'Contenido RETSIT esp'!$A$3:$B$24,2,FALSE),IF(B47=\"ANEXO2\",VLOOKUP(D47,'Contenido RETSIT esp'!$A$26:$B$98,2,FALSE),IF(B47=\"ANEXO3\",VLOOKUP(D47,'Contenido RETSIT esp'!$A$100:$B$105,2,FALSE),IF(B47=\"ANEXO4\",VLOOKUP(D47,'Contenido RETSIT esp'!#REF!,2,FALSE),IF(B47=\"RESOLUCIÓN\",VLOOKUP(D47,'Contenido RETSIT esp'!$A$107:$B$114,2,FALSE),IF(B47=\"MEMORIAJUSTIFICATIVA\",VLOOKUP(D47,'Contenido RETSIT esp'!$A$114:$B$145,2,FALSE),\"\")))))),\"\")","v":""}]
[null,null,{"$f":"IFERROR(VLOOKUP(B48,'Contenido RETSIT esp'!$A$2:$B$145,2,FALSE),\"\")","v":""},null,{"$f":"+_xlfn.IFNA(+IF(B48=\"ANEXO1\",VLOOKUP(D48,'Contenido RETSIT esp'!$A$3:$B$24,2,FALSE),IF(B48=\"ANEXO2\",VLOOKUP(D48,'Contenido RETSIT esp'!$A$26:$B$98,2,FALSE),IF(B48=\"ANEXO3\",VLOOKUP(D48,'Contenido RETSIT esp'!$A$100:$B$105,2,FALSE),IF(B48=\"ANEXO4\",VLOOKUP(D48,'Contenido RETSIT esp'!#REF!,2,FALSE),IF(B48=\"RESOLUCIÓN\",VLOOKUP(D48,'Contenido RETSIT esp'!$A$107:$B$114,2,FALSE),IF(B48=\"MEMORIAJUSTIFICATIVA\",VLOOKUP(D48,'Contenido RETSIT esp'!$A$114:$B$145,2,FALSE),\"\")))))),\"\")","v":""}]
[null,null,{"$f":"IFERROR(VLOOKUP(B49,'Contenido RETSIT esp'!$A$2:$B$145,2,FALSE),\"\")","v":""},null,{"$f":"+_xlfn.IFNA(+IF(B49=\"ANEXO1\",VLOOKUP(D49,'Contenido RETSIT esp'!$A$3:$B$24,2,FALSE),IF(B49=\"ANEXO2\",VLOOKUP(D49,'Contenido RETSIT esp'!$A$26:$B$98,2,FALSE),IF(B49=\"ANEXO3\",VLOOKUP(D49,'Contenido RETSIT esp'!$A$100:$B$105,2,FALSE),IF(B49=\"ANEXO4\",VLOOKUP(D49,'Contenido RETSIT esp'!#REF!,2,FALSE),IF(B49=\"RESOLUCIÓN\",VLOOKUP(D49,'Contenido RETSIT esp'!$A$107:$B$114,2,FALSE),IF(B49=\"MEMORIAJUSTIFICATIVA\",VLOOKUP(D49,'Contenido RETSIT esp'!$A$114:$B$145,2,FALSE),\"\")))))),\"\")","v":""}]
[null,null,{"$f":"IFERROR(VLOOKUP(B50,'Contenido RETSIT esp'!$A$2:$B$145,2,FALSE),\"\")","v":""},null,{"$f":"+_xlfn.IFNA(+IF(B50=\"ANEXO1\",VLOOKUP(D50,'Contenido RETSIT esp'!$A$3:$B$24,2,FALSE),IF(B50=\"ANEXO2\",VLOOKUP(D50,'Contenido RETSIT esp'!$A$26:$B$98,2,FALSE),IF(B50=\"ANEXO3\",VLOOKUP(D50,'Contenido RETSIT esp'!$A$100:$B$105,2,FALSE),IF(B50=\"ANEXO4\",VLOOKUP(D50,'Contenido RETSIT esp'!#REF!,2,FALSE),IF(B50=\"RESOLUCIÓN\",VLOOKUP(D50,'Contenido RETSIT esp'!$A$107:$B$114,2,FALSE),IF(B50=\"MEMORIAJUSTIFICATIVA\",VLOOKUP(D50,'Contenido RETSIT esp'!$A$114:$B$145,2,FALSE),\"\")))))),\"\")","v":""}]
[null,null,{"$f":"IFERROR(VLOOKUP(B51,'Contenido RETSIT esp'!$A$2:$B$145,2,FALSE),\"\")","v":""},null,{"$f":"+_xlfn.IFNA(+IF(B51=\"ANEXO1\",VLOOKUP(D51,'Contenido RETSIT esp'!$A$3:$B$24,2,FALSE),IF(B51=\"ANEXO2\",VLOOKUP(D51,'Contenido RETSIT esp'!$A$26:$B$98,2,FALSE),IF(B51=\"ANEXO3\",VLOOKUP(D51,'Contenido RETSIT esp'!$A$100:$B$105,2,FALSE),IF(B51=\"ANEXO4\",VLOOKUP(D51,'Contenido RETSIT esp'!#REF!,2,FALSE),IF(B51=\"RESOLUCIÓN\",VLOOKUP(D51,'Contenido RETSIT esp'!$A$107:$B$114,2,FALSE),IF(B51=\"MEMORIAJUSTIFICATIVA\",VLOOKUP(D51,'Contenido RETSIT esp'!$A$114:$B$145,2,FALSE),\"\")))))),\"\")","v":""}]
[null,null,{"$f":"IFERROR(VLOOKUP(B52,'Contenido RETSIT esp'!$A$2:$B$145,2,FALSE),\"\")","v":""},null,{"$f":"+_xlfn.IFNA(+IF(B52=\"ANEXO1\",VLOOKUP(D52,'Contenido RETSIT esp'!$A$3:$B$24,2,FALSE),IF(B52=\"ANEXO2\",VLOOKUP(D52,'Contenido RETSIT esp'!$A$26:$B$98,2,FALSE),IF(B52=\"ANEXO3\",VLOOKUP(D52,'Contenido RETSIT esp'!$A$100:$B$105,2,FALSE),IF(B52=\"ANEXO4\",VLOOKUP(D52,'Contenido RETSIT esp'!#REF!,2,FALSE),IF(B52=\"RESOLUCIÓN\",VLOOKUP(D52,'Contenido RETSIT esp'!$A$107:$B$114,2,FALSE),IF(B52=\"MEMORIAJUSTIFICATIVA\",VLOOKUP(D52,'Contenido RETSIT esp'!$A$114:$B$145,2,FALSE),\"\")))))),\"\")","v":""}]
[null,null,{"$f":"IFERROR(VLOOKUP(B53,'Contenido RETSIT esp'!$A$2:$B$145,2,FALSE),\"\")","v":""},null,{"$f":"+_xlfn.IFNA(+IF(B53=\"ANEXO1\",VLOOKUP(D53,'Contenido RETSIT esp'!$A$3:$B$24,2,FALSE),IF(B53=\"ANEXO2\",VLOOKUP(D53,'Contenido RETSIT esp'!$A$26:$B$98,2,FALSE),IF(B53=\"ANEXO3\",VLOOKUP(D53,'Contenido RETSIT esp'!$A$100:$B$105,2,FALSE),IF(B53=\"ANEXO4\",VLOOKUP(D53,'Contenido RETSIT esp'!#REF!,2,FALSE),IF(B53=\"RESOLUCIÓN\",VLOOKUP(D53,'Contenido RETSIT esp'!$A$107:$B$114,2,FALSE),IF(B53=\"MEMORIAJUSTIFICATIVA\",VLOOKUP(D53,'Contenido RETSIT esp'!$A$114:$B$145,2,FALSE),\"\")))))),\"\")","v":""}]
[null,null,{"$f":"IFERROR(VLOOKUP(B54,'Contenido RETSIT esp'!$A$2:$B$145,2,FALSE),\"\")","v":""},null,{"$f":"+_xlfn.IFNA(+IF(B54=\"ANEXO1\",VLOOKUP(D54,'Contenido RETSIT esp'!$A$3:$B$24,2,FALSE),IF(B54=\"ANEXO2\",VLOOKUP(D54,'Contenido RETSIT esp'!$A$26:$B$98,2,FALSE),IF(B54=\"ANEXO3\",VLOOKUP(D54,'Contenido RETSIT esp'!$A$100:$B$105,2,FALSE),IF(B54=\"ANEXO4\",VLOOKUP(D54,'Contenido RETSIT esp'!#REF!,2,FALSE),IF(B54=\"RESOLUCIÓN\",VLOOKUP(D54,'Contenido RETSIT esp'!$A$107:$B$114,2,FALSE),IF(B54=\"MEMORIAJUSTIFICATIVA\",VLOOKUP(D54,'Contenido RETSIT esp'!$A$114:$B$145,2,FALSE),\"\")))))),\"\")","v":""}]
[null,null,{"$f":"IFERROR(VLOOKUP(B55,'Contenido RETSIT esp'!$A$2:$B$145,2,FALSE),\"\")","v":""},null,{"$f":"+_xlfn.IFNA(+IF(B55=\"ANEXO1\",VLOOKUP(D55,'Contenido RETSIT esp'!$A$3:$B$24,2,FALSE),IF(B55=\"ANEXO2\",VLOOKUP(D55,'Contenido RETSIT esp'!$A$26:$B$98,2,FALSE),IF(B55=\"ANEXO3\",VLOOKUP(D55,'Contenido RETSIT esp'!$A$100:$B$105,2,FALSE),IF(B55=\"ANEXO4\",VLOOKUP(D55,'Contenido RETSIT esp'!#REF!,2,FALSE),IF(B55=\"RESOLUCIÓN\",VLOOKUP(D55,'Contenido RETSIT esp'!$A$107:$B$114,2,FALSE),IF(B55=\"MEMORIAJUSTIFICATIVA\",VLOOKUP(D55,'Contenido RETSIT esp'!$A$114:$B$145,2,FALSE),\"\")))))),\"\")","v":""}]
[null,null,{"$f":"IFERROR(VLOOKUP(B56,'Contenido RETSIT esp'!$A$2:$B$145,2,FALSE),\"\")","v":""},null,{"$f":"+_xlfn.IFNA(+IF(B56=\"ANEXO1\",VLOOKUP(D56,'Contenido RETSIT esp'!$A$3:$B$24,2,FALSE),IF(B56=\"ANEXO2\",VLOOKUP(D56,'Contenido RETSIT esp'!$A$26:$B$98,2,FALSE),IF(B56=\"ANEXO3\",VLOOKUP(D56,'Contenido RETSIT esp'!$A$100:$B$105,2,FALSE),IF(B56=\"ANEXO4\",VLOOKUP(D56,'Contenido RETSIT esp'!#REF!,2,FALSE),IF(B56=\"RESOLUCIÓN\",VLOOKUP(D56,'Contenido RETSIT esp'!$A$107:$B$114,2,FALSE),IF(B56=\"MEMORIAJUSTIFICATIVA\",VLOOKUP(D56,'Contenido RETSIT esp'!$A$114:$B$145,2,FALSE),\"\")))))),\"\")","v":""}]
[null,null,{"$f":"IFERROR(VLOOKUP(B57,'Contenido RETSIT esp'!$A$2:$B$145,2,FALSE),\"\")","v":""},null,{"$f":"+_xlfn.IFNA(+IF(B57=\"ANEXO1\",VLOOKUP(D57,'Contenido RETSIT esp'!$A$3:$B$24,2,FALSE),IF(B57=\"ANEXO2\",VLOOKUP(D57,'Contenido RETSIT esp'!$A$26:$B$98,2,FALSE),IF(B57=\"ANEXO3\",VLOOKUP(D57,'Contenido RETSIT esp'!$A$100:$B$105,2,FALSE),IF(B57=\"ANEXO4\",VLOOKUP(D57,'Contenido RETSIT esp'!#REF!,2,FALSE),IF(B57=\"RESOLUCIÓN\",VLOOKUP(D57,'Contenido RETSIT esp'!$A$107:$B$114,2,FALSE),IF(B57=\"MEMORIAJUSTIFICATIVA\",VLOOKUP(D57,'Contenido RETSIT esp'!$A$114:$B$145,2,FALSE),\"\")))))),\"\")","v":""}]
[null,null,{"$f":"IFERROR(VLOOKUP(B58,'Contenido RETSIT esp'!$A$2:$B$145,2,FALSE),\"\")","v":""},null,{"$f":"+_xlfn.IFNA(+IF(B58=\"ANEXO1\",VLOOKUP(D58,'Contenido RETSIT esp'!$A$3:$B$24,2,FALSE),IF(B58=\"ANEXO2\",VLOOKUP(D58,'Contenido RETSIT esp'!$A$26:$B$98,2,FALSE),IF(B58=\"ANEXO3\",VLOOKUP(D58,'Contenido RETSIT esp'!$A$100:$B$105,2,FALSE),IF(B58=\"ANEXO4\",VLOOKUP(D58,'Contenido RETSIT esp'!#REF!,2,FALSE),IF(B58=\"RESOLUCIÓN\",VLOOKUP(D58,'Contenido RETSIT esp'!$A$107:$B$114,2,FALSE),IF(B58=\"MEMORIAJUSTIFICATIVA\",VLOOKUP(D58,'Contenido RETSIT esp'!$A$114:$B$145,2,FALSE),\"\")))))),\"\")","v":""}]
[null,null,{"$f":"IFERROR(VLOOKUP(B59,'Contenido RETSIT esp'!$A$2:$B$145,2,FALSE),\"\")","v":""},null,{"$f":"+_xlfn.IFNA(+IF(B59=\"ANEXO1\",VLOOKUP(D59,'Contenido RETSIT esp'!$A$3:$B$24,2,FALSE),IF(B59=\"ANEXO2\",VLOOKUP(D59,'Contenido RETSIT esp'!$A$26:$B$98,2,FALSE),IF(B59=\"ANEXO3\",VLOOKUP(D59,'Contenido RETSIT esp'!$A$100:$B$105,2,FALSE),IF(B59=\"ANEXO4\",VLOOKUP(D59,'Contenido RETSIT esp'!#REF!,2,FALSE),IF(B59=\"RESOLUCIÓN\",VLOOKUP(D59,'Contenido RETSIT esp'!$A$107:$B$114,2,FALSE),IF(B59=\"MEMORIAJUSTIFICATIVA\",VLOOKUP(D59,'Contenido RETSIT esp'!$A$114:$B$145,2,FALSE),\"\")))))),\"\")","v":""}]
[null,null,{"$f":"IFERROR(VLOOKUP(B60,'Contenido RETSIT esp'!$A$2:$B$145,2,FALSE),\"\")","v":""},null,{"$f":"+_xlfn.IFNA(+IF(B60=\"ANEXO1\",VLOOKUP(D60,'Contenido RETSIT esp'!$A$3:$B$24,2,FALSE),IF(B60=\"ANEXO2\",VLOOKUP(D60,'Contenido RETSIT esp'!$A$26:$B$98,2,FALSE),IF(B60=\"ANEXO3\",VLOOKUP(D60,'Contenido RETSIT esp'!$A$100:$B$105,2,FALSE),IF(B60=\"ANEXO4\",VLOOKUP(D60,'Contenido RETSIT esp'!#REF!,2,FALSE),IF(B60=\"RESOLUCIÓN\",VLOOKUP(D60,'Contenido RETSIT esp'!$A$107:$B$114,2,FALSE),IF(B60=\"MEMORIAJUSTIFICATIVA\",VLOOKUP(D60,'Contenido RETSIT esp'!$A$114:$B$145,2,FALSE),\"\")))))),\"\")","v":""}]
[null,null,{"$f":"IFERROR(VLOOKUP(B61,'Contenido RETSIT esp'!$A$2:$B$145,2,FALSE),\"\")","v":""},null,{"$f":"+_xlfn.IFNA(+IF(B61=\"ANEXO1\",VLOOKUP(D61,'Contenido RETSIT esp'!$A$3:$B$24,2,FALSE),IF(B61=\"ANEXO2\",VLOOKUP(D61,'Contenido RETSIT esp'!$A$26:$B$98,2,FALSE),IF(B61=\"ANEXO3\",VLOOKUP(D61,'Contenido RETSIT esp'!$A$100:$B$105,2,FALSE),IF(B61=\"ANEXO4\",VLOOKUP(D61,'Contenido RETSIT esp'!#REF!,2,FALSE),IF(B61=\"RESOLUCIÓN\",VLOOKUP(D61,'Contenido RETSIT esp'!$A$107:$B$114,2,FALSE),IF(B61=\"MEMORIAJUSTIFICATIVA\",VLOOKUP(D61,'Contenido RETSIT esp'!$A$114:$B$145,2,FALSE),\"\")))))),\"\")","v":""}]
[null,null,{"$f":"IFERROR(VLOOKUP(B62,'Contenido RETSIT esp'!$A$2:$B$145,2,FALSE),\"\")","v":""},null,{"$f":"+_xlfn.IFNA(+IF(B62=\"ANEXO1\",VLOOKUP(D62,'Contenido RETSIT esp'!$A$3:$B$24,2,FALSE),IF(B62=\"ANEXO2\",VLOOKUP(D62,'Contenido RETSIT esp'!$A$26:$B$98,2,FALSE),IF(B62=\"ANEXO3\",VLOOKUP(D62,'Contenido RETSIT esp'!$A$100:$B$105,2,FALSE),IF(B62=\"ANEXO4\",VLOOKUP(D62,'Contenido RETSIT esp'!#REF!,2,FALSE),IF(B62=\"RESOLUCIÓN\",VLOOKUP(D62,'Contenido RETSIT esp'!$A$107:$B$114,2,FALSE),IF(B62=\"MEMORIAJUSTIFICATIVA\",VLOOKUP(D62,'Contenido RETSIT esp'!$A$114:$B$145,2,FALSE),\"\")))))),\"\")","v":""}]
[null,null,{"$f":"IFERROR(VLOOKUP(B63,'Contenido RETSIT esp'!$A$2:$B$145,2,FALSE),\"\")","v":""},null,{"$f":"+_xlfn.IFNA(+IF(B63=\"ANEXO1\",VLOOKUP(D63,'Contenido RETSIT esp'!$A$3:$B$24,2,FALSE),IF(B63=\"ANEXO2\",VLOOKUP(D63,'Contenido RETSIT esp'!$A$26:$B$98,2,FALSE),IF(B63=\"ANEXO3\",VLOOKUP(D63,'Contenido RETSIT esp'!$A$100:$B$105,2,FALSE),IF(B63=\"ANEXO4\",VLOOKUP(D63,'Contenido RETSIT esp'!#REF!,2,FALSE),IF(B63=\"RESOLUCIÓN\",VLOOKUP(D63,'Contenido RETSIT esp'!$A$107:$B$114,2,FALSE),IF(B63=\"MEMORIAJUSTIFICATIVA\",VLOOKUP(D63,'Contenido RETSIT esp'!$A$114:$B$145,2,FALSE),\"\")))))),\"\")","v":""}]
[null,null,{"$f":"IFERROR(VLOOKUP(B64,'Contenido RETSIT esp'!$A$2:$B$145,2,FALSE),\"\")","v":""},null,{"$f":"+_xlfn.IFNA(+IF(B64=\"ANEXO1\",VLOOKUP(D64,'Contenido RETSIT esp'!$A$3:$B$24,2,FALSE),IF(B64=\"ANEXO2\",VLOOKUP(D64,'Contenido RETSIT esp'!$A$26:$B$98,2,FALSE),IF(B64=\"ANEXO3\",VLOOKUP(D64,'Contenido RETSIT esp'!$A$100:$B$105,2,FALSE),IF(B64=\"ANEXO4\",VLOOKUP(D64,'Contenido RETSIT esp'!#REF!,2,FALSE),IF(B64=\"RESOLUCIÓN\",VLOOKUP(D64,'Contenido RETSIT esp'!$A$107:$B$114,2,FALSE),IF(B64=\"MEMORIAJUSTIFICATIVA\",VLOOKUP(D64,'Contenido RETSIT esp'!$A$114:$B$145,2,FALSE),\"\")))))),\"\")","v":""}]
[null,null,{"$f":"IFERROR(VLOOKUP(B65,'Contenido RETSIT esp'!$A$2:$B$145,2,FALSE),\"\")","v":""},null,{"$f":"+_xlfn.IFNA(+IF(B65=\"ANEXO1\",VLOOKUP(D65,'Contenido RETSIT esp'!$A$3:$B$24,2,FALSE),IF(B65=\"ANEXO2\",VLOOKUP(D65,'Contenido RETSIT esp'!$A$26:$B$98,2,FALSE),IF(B65=\"ANEXO3\",VLOOKUP(D65,'Contenido RETSIT esp'!$A$100:$B$105,2,FALSE),IF(B65=\"ANEXO4\",VLOOKUP(D65,'Contenido RETSIT esp'!#REF!,2,FALSE),IF(B65=\"RESOLUCIÓN\",VLOOKUP(D65,'Contenido RETSIT esp'!$A$107:$B$114,2,FALSE),IF(B65=\"MEMORIAJUSTIFICATIVA\",VLOOKUP(D65,'Contenido RETSIT esp'!$A$114:$B$145,2,FALSE),\"\")))))),\"\")","v":""}]
[null,null,{"$f":"IFERROR(VLOOKUP(B66,'Contenido RETSIT esp'!$A$2:$B$145,2,FALSE),\"\")","v":""},null,{"$f":"+_xlfn.IFNA(+IF(B66=\"ANEXO1\",VLOOKUP(D66,'Contenido RETSIT esp'!$A$3:$B$24,2,FALSE),IF(B66=\"ANEXO2\",VLOOKUP(D66,'Contenido RETSIT esp'!$A$26:$B$98,2,FALSE),IF(B66=\"ANEXO3\",VLOOKUP(D66,'Contenido RETSIT esp'!$A$100:$B$105,2,FALSE),IF(B66=\"ANEXO4\",VLOOKUP(D66,'Contenido RETSIT esp'!#REF!,2,FALSE),IF(B66=\"RESOLUCIÓN\",VLOOKUP(D66,'Contenido RETSIT esp'!$A$107:$B$114,2,FALSE),IF(B66=\"MEMORIAJUSTIFICATIVA\",VLOOKUP(D66,'Contenido RETSIT esp'!$A$114:$B$145,2,FALSE),\"\")))))),\"\")","v":""}]
[null,null,{"$f":"IFERROR(VLOOKUP(B67,'Contenido RETSIT esp'!$A$2:$B$145,2,FALSE),\"\")","v":""},null,{"$f":"+_xlfn.IFNA(+IF(B67=\"ANEXO1\",VLOOKUP(D67,'Contenido RETSIT esp'!$A$3:$B$24,2,FALSE),IF(B67=\"ANEXO2\",VLOOKUP(D67,'Contenido RETSIT esp'!$A$26:$B$98,2,FALSE),IF(B67=\"ANEXO3\",VLOOKUP(D67,'Contenido RETSIT esp'!$A$100:$B$105,2,FALSE),IF(B67=\"ANEXO4\",VLOOKUP(D67,'Contenido RETSIT esp'!#REF!,2,FALSE),IF(B67=\"RESOLUCIÓN\",VLOOKUP(D67,'Contenido RETSIT esp'!$A$107:$B$114,2,FALSE),IF(B67=\"MEMORIAJUSTIFICATIVA\",VLOOKUP(D67,'Contenido RETSIT esp'!$A$114:$B$145,2,FALSE),\"\")))))),\"\")","v":""}]
[null,null,{"$f":"IFERROR(VLOOKUP(B68,'Contenido RETSIT esp'!$A$2:$B$145,2,FALSE),\"\")","v":""},null,{"$f":"+_xlfn.IFNA(+IF(B68=\"ANEXO1\",VLOOKUP(D68,'Contenido RETSIT esp'!$A$3:$B$24,2,FALSE),IF(B68=\"ANEXO2\",VLOOKUP(D68,'Contenido RETSIT esp'!$A$26:$B$98,2,FALSE),IF(B68=\"ANEXO3\",VLOOKUP(D68,'Contenido RETSIT esp'!$A$100:$B$105,2,FALSE),IF(B68=\"ANEXO4\",VLOOKUP(D68,'Contenido RETSIT esp'!#REF!,2,FALSE),IF(B68=\"RESOLUCIÓN\",VLOOKUP(D68,'Contenido RETSIT esp'!$A$107:$B$114,2,FALSE),IF(B68=\"MEMORIAJUSTIFICATIVA\",VLOOKUP(D68,'Contenido RETSIT esp'!$A$114:$B$145,2,FALSE),\"\")))))),\"\")","v":""}]
[null,null,{"$f":"IFERROR(VLOOKUP(B69,'Contenido RETSIT esp'!$A$2:$B$145,2,FALSE),\"\")","v":""},null,{"$f":"+_xlfn.IFNA(+IF(B69=\"ANEXO1\",VLOOKUP(D69,'Contenido RETSIT esp'!$A$3:$B$24,2,FALSE),IF(B69=\"ANEXO2\",VLOOKUP(D69,'Contenido RETSIT esp'!$A$26:$B$98,2,FALSE),IF(B69=\"ANEXO3\",VLOOKUP(D69,'Contenido RETSIT esp'!$A$100:$B$105,2,FALSE),IF(B69=\"ANEXO4\",VLOOKUP(D69,'Contenido RETSIT esp'!#REF!,2,FALSE),IF(B69=\"RESOLUCIÓN\",VLOOKUP(D69,'Contenido RETSIT esp'!$A$107:$B$114,2,FALSE),IF(B69=\"MEMORIAJUSTIFICATIVA\",VLOOKUP(D69,'Contenido RETSIT esp'!$A$114:$B$145,2,FALSE),\"\")))))),\"\")","v":""}]
[null,null,{"$f":"IFERROR(VLOOKUP(B70,'Contenido RETSIT esp'!$A$2:$B$145,2,FALSE),\"\")","v":""},null,{"$f":"+_xlfn.IFNA(+IF(B70=\"ANEXO1\",VLOOKUP(D70,'Contenido RETSIT esp'!$A$3:$B$24,2,FALSE),IF(B70=\"ANEXO2\",VLOOKUP(D70,'Contenido RETSIT esp'!$A$26:$B$98,2,FALSE),IF(B70=\"ANEXO3\",VLOOKUP(D70,'Contenido RETSIT esp'!$A$100:$B$105,2,FALSE),IF(B70=\"ANEXO4\",VLOOKUP(D70,'Contenido RETSIT esp'!#REF!,2,FALSE),IF(B70=\"RESOLUCIÓN\",VLOOKUP(D70,'Contenido RETSIT esp'!$A$107:$B$114,2,FALSE),IF(B70=\"MEMORIAJUSTIFICATIVA\",VLOOKUP(D70,'Contenido RETSIT esp'!$A$114:$B$145,2,FALSE),\"\")))))),\"\")","v":""}]
[null,null,{"$f":"IFERROR(VLOOKUP(B71,'Contenido RETSIT esp'!$A$2:$B$145,2,FALSE),\"\")","v":""},null,{"$f":"+_xlfn.IFNA(+IF(B71=\"ANEXO1\",VLOOKUP(D71,'Contenido RETSIT esp'!$A$3:$B$24,2,FALSE),IF(B71=\"ANEXO2\",VLOOKUP(D71,'Contenido RETSIT esp'!$A$26:$B$98,2,FALSE),IF(B71=\"ANEXO3\",VLOOKUP(D71,'Contenido RETSIT esp'!$A$100:$B$105,2,FALSE),IF(B71=\"ANEXO4\",VLOOKUP(D71,'Contenido RETSIT esp'!#REF!,2,FALSE),IF(B71=\"RESOLUCIÓN\",VLOOKUP(D71,'Contenido RETSIT esp'!$A$107:$B$114,2,FALSE),IF(B71=\"MEMORIAJUSTIFICATIVA\",VLOOKUP(D71,'Contenido RETSIT esp'!$A$114:$B$145,2,FALSE),\"\")))))),\"\")","v":""}]
[null,null,{"$f":"IFERROR(VLOOKUP(B72,'Contenido RETSIT esp'!$A$2:$B$145,2,FALSE),\"\")","v":""},null,{"$f":"+_xlfn.IFNA(+IF(B72=\"ANEXO1\",VLOOKUP(D72,'Contenido RETSIT esp'!$A$3:$B$24,2,FALSE),IF(B72=\"ANEXO2\",VLOOKUP(D72,'Contenido RETSIT esp'!$A$26:$B$98,2,FALSE),IF(B72=\"ANEXO3\",VLOOKUP(D72,'Contenido RETSIT esp'!$A$100:$B$105,2,FALSE),IF(B72=\"ANEXO4\",VLOOKUP(D72,'Contenido RETSIT esp'!#REF!,2,FALSE),IF(B72=\"RESOLUCIÓN\",VLOOKUP(D72,'Contenido RETSIT esp'!$A$107:$B$114,2,FALSE),IF(B72=\"MEMORIAJUSTIFICATIVA\",VLOOKUP(D72,'Contenido RETSIT esp'!$A$114:$B$145,2,FALSE),\"\")))))),\"\")","v":""}]
[null,null,{"$f":"IFERROR(VLOOKUP(B73,'Contenido RETSIT esp'!$A$2:$B$145,2,FALSE),\"\")","v":""},null,{"$f":"+_xlfn.IFNA(+IF(B73=\"ANEXO1\",VLOOKUP(D73,'Contenido RETSIT esp'!$A$3:$B$24,2,FALSE),IF(B73=\"ANEXO2\",VLOOKUP(D73,'Contenido RETSIT esp'!$A$26:$B$98,2,FALSE),IF(B73=\"ANEXO3\",VLOOKUP(D73,'Contenido RETSIT esp'!$A$100:$B$105,2,FALSE),IF(B73=\"ANEXO4\",VLOOKUP(D73,'Contenido RETSIT esp'!#REF!,2,FALSE),IF(B73=\"RESOLUCIÓN\",VLOOKUP(D73,'Contenido RETSIT esp'!$A$107:$B$114,2,FALSE),IF(B73=\"MEMORIAJUSTIFICATIVA\",VLOOKUP(D73,'Contenido RETSIT esp'!$A$114:$B$145,2,FALSE),\"\")))))),\"\")","v":""}]
[null,null,{"$f":"IFERROR(VLOOKUP(B74,'Contenido RETSIT esp'!$A$2:$B$145,2,FALSE),\"\")","v":""},null,{"$f":"+_xlfn.IFNA(+IF(B74=\"ANEXO1\",VLOOKUP(D74,'Contenido RETSIT esp'!$A$3:$B$24,2,FALSE),IF(B74=\"ANEXO2\",VLOOKUP(D74,'Contenido RETSIT esp'!$A$26:$B$98,2,FALSE),IF(B74=\"ANEXO3\",VLOOKUP(D74,'Contenido RETSIT esp'!$A$100:$B$105,2,FALSE),IF(B74=\"ANEXO4\",VLOOKUP(D74,'Contenido RETSIT esp'!#REF!,2,FALSE),IF(B74=\"RESOLUCIÓN\",VLOOKUP(D74,'Contenido RETSIT esp'!$A$107:$B$114,2,FALSE),IF(B74=\"MEMORIAJUSTIFICATIVA\",VLOOKUP(D74,'Contenido RETSIT esp'!$A$114:$B$145,2,FALSE),\"\")))))),\"\")","v":""}]
[null,null,{"$f":"IFERROR(VLOOKUP(B75,'Contenido RETSIT esp'!$A$2:$B$145,2,FALSE),\"\")","v":""},null,{"$f":"+_xlfn.IFNA(+IF(B75=\"ANEXO1\",VLOOKUP(D75,'Contenido RETSIT esp'!$A$3:$B$24,2,FALSE),IF(B75=\"ANEXO2\",VLOOKUP(D75,'Contenido RETSIT esp'!$A$26:$B$98,2,FALSE),IF(B75=\"ANEXO3\",VLOOKUP(D75,'Contenido RETSIT esp'!$A$100:$B$105,2,FALSE),IF(B75=\"ANEXO4\",VLOOKUP(D75,'Contenido RETSIT esp'!#REF!,2,FALSE),IF(B75=\"RESOLUCIÓN\",VLOOKUP(D75,'Contenido RETSIT esp'!$A$107:$B$114,2,FALSE),IF(B75=\"MEMORIAJUSTIFICATIVA\",VLOOKUP(D75,'Contenido RETSIT esp'!$A$114:$B$145,2,FALSE),\"\")))))),\"\")","v":""}]
[null,null,{"$f":"IFERROR(VLOOKUP(B76,'Contenido RETSIT esp'!$A$2:$B$145,2,FALSE),\"\")","v":""},null,{"$f":"+_xlfn.IFNA(+IF(B76=\"ANEXO1\",VLOOKUP(D76,'Contenido RETSIT esp'!$A$3:$B$24,2,FALSE),IF(B76=\"ANEXO2\",VLOOKUP(D76,'Contenido RETSIT esp'!$A$26:$B$98,2,FALSE),IF(B76=\"ANEXO3\",VLOOKUP(D76,'Contenido RETSIT esp'!$A$100:$B$105,2,FALSE),IF(B76=\"ANEXO4\",VLOOKUP(D76,'Contenido RETSIT esp'!#REF!,2,FALSE),IF(B76=\"RESOLUCIÓN\",VLOOKUP(D76,'Contenido RETSIT esp'!$A$107:$B$114,2,FALSE),IF(B76=\"MEMORIAJUSTIFICATIVA\",VLOOKUP(D76,'Contenido RETSIT esp'!$A$114:$B$145,2,FALSE),\"\")))))),\"\")","v":""}]
[null,null,{"$f":"IFERROR(VLOOKUP(B77,'Contenido RETSIT esp'!$A$2:$B$145,2,FALSE),\"\")","v":""},null,{"$f":"+_xlfn.IFNA(+IF(B77=\"ANEXO1\",VLOOKUP(D77,'Contenido RETSIT esp'!$A$3:$B$24,2,FALSE),IF(B77=\"ANEXO2\",VLOOKUP(D77,'Contenido RETSIT esp'!$A$26:$B$98,2,FALSE),IF(B77=\"ANEXO3\",VLOOKUP(D77,'Contenido RETSIT esp'!$A$100:$B$105,2,FALSE),IF(B77=\"ANEXO4\",VLOOKUP(D77,'Contenido RETSIT esp'!#REF!,2,FALSE),IF(B77=\"RESOLUCIÓN\",VLOOKUP(D77,'Contenido RETSIT esp'!$A$107:$B$114,2,FALSE),IF(B77=\"MEMORIAJUSTIFICATIVA\",VLOOKUP(D77,'Contenido RETSIT esp'!$A$114:$B$145,2,FALSE),\"\")))))),\"\")","v":""}]
[null,null,{"$f":"IFERROR(VLOOKUP(B78,'Contenido RETSIT esp'!$A$2:$B$145,2,FALSE),\"\")","v":""},null,{"$f":"+_xlfn.IFNA(+IF(B78=\"ANEXO1\",VLOOKUP(D78,'Contenido RETSIT esp'!$A$3:$B$24,2,FALSE),IF(B78=\"ANEXO2\",VLOOKUP(D78,'Contenido RETSIT esp'!$A$26:$B$98,2,FALSE),IF(B78=\"ANEXO3\",VLOOKUP(D78,'Contenido RETSIT esp'!$A$100:$B$105,2,FALSE),IF(B78=\"ANEXO4\",VLOOKUP(D78,'Contenido RETSIT esp'!#REF!,2,FALSE),IF(B78=\"RESOLUCIÓN\",VLOOKUP(D78,'Contenido RETSIT esp'!$A$107:$B$114,2,FALSE),IF(B78=\"MEMORIAJUSTIFICATIVA\",VLOOKUP(D78,'Contenido RETSIT esp'!$A$114:$B$145,2,FALSE),\"\")))))),\"\")","v":""}]
[null,null,{"$f":"IFERROR(VLOOKUP(B79,'Contenido RETSIT esp'!$A$2:$B$145,2,FALSE),\"\")","v":""},null,{"$f":"+_xlfn.IFNA(+IF(B79=\"ANEXO1\",VLOOKUP(D79,'Contenido RETSIT esp'!$A$3:$B$24,2,FALSE),IF(B79=\"ANEXO2\",VLOOKUP(D79,'Contenido RETSIT esp'!$A$26:$B$98,2,FALSE),IF(B79=\"ANEXO3\",VLOOKUP(D79,'Contenido RETSIT esp'!$A$100:$B$105,2,FALSE),IF(B79=\"ANEXO4\",VLOOKUP(D79,'Contenido RETSIT esp'!#REF!,2,FALSE),IF(B79=\"RESOLUCIÓN\",VLOOKUP(D79,'Contenido RETSIT esp'!$A$107:$B$114,2,FALSE),IF(B79=\"MEMORIAJUSTIFICATIVA\",VLOOKUP(D79,'Contenido RETSIT esp'!$A$114:$B$145,2,FALSE),\"\")))))),\"\")","v":""}]
[null,null,{"$f":"IFERROR(VLOOKUP(B80,'Contenido RETSIT esp'!$A$2:$B$145,2,FALSE),\"\")","v":""},null,{"$f":"+_xlfn.IFNA(+IF(B80=\"ANEXO1\",VLOOKUP(D80,'Contenido RETSIT esp'!$A$3:$B$24,2,FALSE),IF(B80=\"ANEXO2\",VLOOKUP(D80,'Contenido RETSIT esp'!$A$26:$B$98,2,FALSE),IF(B80=\"ANEXO3\",VLOOKUP(D80,'Contenido RETSIT esp'!$A$100:$B$105,2,FALSE),IF(B80=\"ANEXO4\",VLOOKUP(D80,'Contenido RETSIT esp'!#REF!,2,FALSE),IF(B80=\"RESOLUCIÓN\",VLOOKUP(D80,'Contenido RETSIT esp'!$A$107:$B$114,2,FALSE),IF(B80=\"MEMORIAJUSTIFICATIVA\",VLOOKUP(D80,'Contenido RETSIT esp'!$A$114:$B$145,2,FALSE),\"\")))))),\"\")","v":""}]
[null,null,{"$f":"IFERROR(VLOOKUP(B81,'Contenido RETSIT esp'!$A$2:$B$145,2,FALSE),\"\")","v":""},null,{"$f":"+_xlfn.IFNA(+IF(B81=\"ANEXO1\",VLOOKUP(D81,'Contenido RETSIT esp'!$A$3:$B$24,2,FALSE),IF(B81=\"ANEXO2\",VLOOKUP(D81,'Contenido RETSIT esp'!$A$26:$B$98,2,FALSE),IF(B81=\"ANEXO3\",VLOOKUP(D81,'Contenido RETSIT esp'!$A$100:$B$105,2,FALSE),IF(B81=\"ANEXO4\",VLOOKUP(D81,'Contenido RETSIT esp'!#REF!,2,FALSE),IF(B81=\"RESOLUCIÓN\",VLOOKUP(D81,'Contenido RETSIT esp'!$A$107:$B$114,2,FALSE),IF(B81=\"MEMORIAJUSTIFICATIVA\",VLOOKUP(D81,'Contenido RETSIT esp'!$A$114:$B$145,2,FALSE),\"\")))))),\"\")","v":""}]
[null,null,{"$f":"IFERROR(VLOOKUP(B82,'Contenido RETSIT esp'!$A$2:$B$145,2,FALSE),\"\")","v":""},null,{"$f":"+_xlfn.IFNA(+IF(B82=\"ANEXO1\",VLOOKUP(D82,'Contenido RETSIT esp'!$A$3:$B$24,2,FALSE),IF(B82=\"ANEXO2\",VLOOKUP(D82,'Contenido RETSIT esp'!$A$26:$B$98,2,FALSE),IF(B82=\"ANEXO3\",VLOOKUP(D82,'Contenido RETSIT esp'!$A$100:$B$105,2,FALSE),IF(B82=\"ANEXO4\",VLOOKUP(D82,'Contenido RETSIT esp'!#REF!,2,FALSE),IF(B82=\"RESOLUCIÓN\",VLOOKUP(D82,'Contenido RETSIT esp'!$A$107:$B$114,2,FALSE),IF(B82=\"MEMORIAJUSTIFICATIVA\",VLOOKUP(D82,'Contenido RETSIT esp'!$A$114:$B$145,2,FALSE),\"\")))))),\"\")","v":""}]
[null,null,{"$f":"IFERROR(VLOOKUP(B83,'Contenido RETSIT esp'!$A$2:$B$145,2,FALSE),\"\")","v":""},null,{"$f":"+_xlfn.IFNA(+IF(B83=\"ANEXO1\",VLOOKUP(D83,'Contenido RETSIT esp'!$A$3:$B$24,2,FALSE),IF(B83=\"ANEXO2\",VLOOKUP(D83,'Contenido RETSIT esp'!$A$26:$B$98,2,FALSE),IF(B83=\"ANEXO3\",VLOOKUP(D83,'Contenido RETSIT esp'!$A$100:$B$105,2,FALSE),IF(B83=\"ANEXO4\",VLOOKUP(D83,'Contenido RETSIT esp'!#REF!,2,FALSE),IF(B83=\"RESOLUCIÓN\",VLOOKUP(D83,'Contenido RETSIT esp'!$A$107:$B$114,2,FALSE),IF(B83=\"MEMORIAJUSTIFICATIVA\",VLOOKUP(D83,'Contenido RETSIT esp'!$A$114:$B$145,2,FALSE),\"\")))))),\"\")","v":""}]
[null,null,{"$f":"IFERROR(VLOOKUP(B84,'Contenido RETSIT esp'!$A$2:$B$145,2,FALSE),\"\")","v":""},null,{"$f":"+_xlfn.IFNA(+IF(B84=\"ANEXO1\",VLOOKUP(D84,'Contenido RETSIT esp'!$A$3:$B$24,2,FALSE),IF(B84=\"ANEXO2\",VLOOKUP(D84,'Contenido RETSIT esp'!$A$26:$B$98,2,FALSE),IF(B84=\"ANEXO3\",VLOOKUP(D84,'Contenido RETSIT esp'!$A$100:$B$105,2,FALSE),IF(B84=\"ANEXO4\",VLOOKUP(D84,'Contenido RETSIT esp'!#REF!,2,FALSE),IF(B84=\"RESOLUCIÓN\",VLOOKUP(D84,'Contenido RETSIT esp'!$A$107:$B$114,2,FALSE),IF(B84=\"MEMORIAJUSTIFICATIVA\",VLOOKUP(D84,'Contenido RETSIT esp'!$A$114:$B$145,2,FALSE),\"\")))))),\"\")","v":""}]
[null,null,{"$f":"IFERROR(VLOOKUP(B85,'Contenido RETSIT esp'!$A$2:$B$145,2,FALSE),\"\")","v":""},null,{"$f":"+_xlfn.IFNA(+IF(B85=\"ANEXO1\",VLOOKUP(D85,'Contenido RETSIT esp'!$A$3:$B$24,2,FALSE),IF(B85=\"ANEXO2\",VLOOKUP(D85,'Contenido RETSIT esp'!$A$26:$B$98,2,FALSE),IF(B85=\"ANEXO3\",VLOOKUP(D85,'Contenido RETSIT esp'!$A$100:$B$105,2,FALSE),IF(B85=\"ANEXO4\",VLOOKUP(D85,'Contenido RETSIT esp'!#REF!,2,FALSE),IF(B85=\"RESOLUCIÓN\",VLOOKUP(D85,'Contenido RETSIT esp'!$A$107:$B$114,2,FALSE),IF(B85=\"MEMORIAJUSTIFICATIVA\",VLOOKUP(D85,'Contenido RETSIT esp'!$A$114:$B$145,2,FALSE),\"\")))))),\"\")","v":""}]
[null,null,{"$f":"IFERROR(VLOOKUP(B86,'Contenido RETSIT esp'!$A$2:$B$145,2,FALSE),\"\")","v":""},null,{"$f":"+_xlfn.IFNA(+IF(B86=\"ANEXO1\",VLOOKUP(D86,'Contenido RETSIT esp'!$A$3:$B$24,2,FALSE),IF(B86=\"ANEXO2\",VLOOKUP(D86,'Contenido RETSIT esp'!$A$26:$B$98,2,FALSE),IF(B86=\"ANEXO3\",VLOOKUP(D86,'Contenido RETSIT esp'!$A$100:$B$105,2,FALSE),IF(B86=\"ANEXO4\",VLOOKUP(D86,'Contenido RETSIT esp'!#REF!,2,FALSE),IF(B86=\"RESOLUCIÓN\",VLOOKUP(D86,'Contenido RETSIT esp'!$A$107:$B$114,2,FALSE),IF(B86=\"MEMORIAJUSTIFICATIVA\",VLOOKUP(D86,'Contenido RETSIT esp'!$A$114:$B$145,2,FALSE),\"\")))))),\"\")","v":""}]
[null,null,{"$f":"IFERROR(VLOOKUP(B87,'Contenido RETSIT esp'!$A$2:$B$145,2,FALSE),\"\")","v":""},null,{"$f":"+_xlfn.IFNA(+IF(B87=\"ANEXO1\",VLOOKUP(D87,'Contenido RETSIT esp'!$A$3:$B$24,2,FALSE),IF(B87=\"ANEXO2\",VLOOKUP(D87,'Contenido RETSIT esp'!$A$26:$B$98,2,FALSE),IF(B87=\"ANEXO3\",VLOOKUP(D87,'Contenido RETSIT esp'!$A$100:$B$105,2,FALSE),IF(B87=\"ANEXO4\",VLOOKUP(D87,'Contenido RETSIT esp'!#REF!,2,FALSE),IF(B87=\"RESOLUCIÓN\",VLOOKUP(D87,'Contenido RETSIT esp'!$A$107:$B$114,2,FALSE),IF(B87=\"MEMORIAJUSTIFICATIVA\",VLOOKUP(D87,'Contenido RETSIT esp'!$A$114:$B$145,2,FALSE),\"\")))))),\"\")","v":""}]
[null,null,{"$f":"IFERROR(VLOOKUP(B88,'Contenido RETSIT esp'!$A$2:$B$145,2,FALSE),\"\")","v":""},null,{"$f":"+_xlfn.IFNA(+IF(B88=\"ANEXO1\",VLOOKUP(D88,'Contenido RETSIT esp'!$A$3:$B$24,2,FALSE),IF(B88=\"ANEXO2\",VLOOKUP(D88,'Contenido RETSIT esp'!$A$26:$B$98,2,FALSE),IF(B88=\"ANEXO3\",VLOOKUP(D88,'Contenido RETSIT esp'!$A$100:$B$105,2,FALSE),IF(B88=\"ANEXO4\",VLOOKUP(D88,'Contenido RETSIT esp'!#REF!,2,FALSE),IF(B88=\"RESOLUCIÓN\",VLOOKUP(D88,'Contenido RETSIT esp'!$A$107:$B$114,2,FALSE),IF(B88=\"MEMORIAJUSTIFICATIVA\",VLOOKUP(D88,'Contenido RETSIT esp'!$A$114:$B$145,2,FALSE),\"\")))))),\"\")","v":""}]
[null,null,{"$f":"IFERROR(VLOOKUP(B89,'Contenido RETSIT esp'!$A$2:$B$145,2,FALSE),\"\")","v":""},null,{"$f":"+_xlfn.IFNA(+IF(B89=\"ANEXO1\",VLOOKUP(D89,'Contenido RETSIT esp'!$A$3:$B$24,2,FALSE),IF(B89=\"ANEXO2\",VLOOKUP(D89,'Contenido RETSIT esp'!$A$26:$B$98,2,FALSE),IF(B89=\"ANEXO3\",VLOOKUP(D89,'Contenido RETSIT esp'!$A$100:$B$105,2,FALSE),IF(B89=\"ANEXO4\",VLOOKUP(D89,'Contenido RETSIT esp'!#REF!,2,FALSE),IF(B89=\"RESOLUCIÓN\",VLOOKUP(D89,'Contenido RETSIT esp'!$A$107:$B$114,2,FALSE),IF(B89=\"MEMORIAJUSTIFICATIVA\",VLOOKUP(D89,'Contenido RETSIT esp'!$A$114:$B$145,2,FALSE),\"\")))))),\"\")","v":""}]
[null,null,{"$f":"IFERROR(VLOOKUP(B90,'Contenido RETSIT esp'!$A$2:$B$145,2,FALSE),\"\")","v":""},null,{"$f":"+_xlfn.IFNA(+IF(B90=\"ANEXO1\",VLOOKUP(D90,'Contenido RETSIT esp'!$A$3:$B$24,2,FALSE),IF(B90=\"ANEXO2\",VLOOKUP(D90,'Contenido RETSIT esp'!$A$26:$B$98,2,FALSE),IF(B90=\"ANEXO3\",VLOOKUP(D90,'Contenido RETSIT esp'!$A$100:$B$105,2,FALSE),IF(B90=\"ANEXO4\",VLOOKUP(D90,'Contenido RETSIT esp'!#REF!,2,FALSE),IF(B90=\"RESOLUCIÓN\",VLOOKUP(D90,'Contenido RETSIT esp'!$A$107:$B$114,2,FALSE),IF(B90=\"MEMORIAJUSTIFICATIVA\",VLOOKUP(D90,'Contenido RETSIT esp'!$A$114:$B$145,2,FALSE),\"\")))))),\"\")","v":""}]
[null,null,{"$f":"IFERROR(VLOOKUP(B91,'Contenido RETSIT esp'!$A$2:$B$145,2,FALSE),\"\")","v":""},null,{"$f":"+_xlfn.IFNA(+IF(B91=\"ANEXO1\",VLOOKUP(D91,'Contenido RETSIT esp'!$A$3:$B$24,2,FALSE),IF(B91=\"ANEXO2\",VLOOKUP(D91,'Contenido RETSIT esp'!$A$26:$B$98,2,FALSE),IF(B91=\"ANEXO3\",VLOOKUP(D91,'Contenido RETSIT esp'!$A$100:$B$105,2,FALSE),IF(B91=\"ANEXO4\",VLOOKUP(D91,'Contenido RETSIT esp'!#REF!,2,FALSE),IF(B91=\"RESOLUCIÓN\",VLOOKUP(D91,'Contenido RETSIT esp'!$A$107:$B$114,2,FALSE),IF(B91=\"MEMORIAJUSTIFICATIVA\",VLOOKUP(D91,'Contenido RETSIT esp'!$A$114:$B$145,2,FALSE),\"\")))))),\"\")","v":""}]
[null,null,{"$f":"IFERROR(VLOOKUP(B92,'Contenido RETSIT esp'!$A$2:$B$145,2,FALSE),\"\")","v":""},null,{"$f":"+_xlfn.IFNA(+IF(B92=\"ANEXO1\",VLOOKUP(D92,'Contenido RETSIT esp'!$A$3:$B$24,2,FALSE),IF(B92=\"ANEXO2\",VLOOKUP(D92,'Contenido RETSIT esp'!$A$26:$B$98,2,FALSE),IF(B92=\"ANEXO3\",VLOOKUP(D92,'Contenido RETSIT esp'!$A$100:$B$105,2,FALSE),IF(B92=\"ANEXO4\",VLOOKUP(D92,'Contenido RETSIT esp'!#REF!,2,FALSE),IF(B92=\"RESOLUCIÓN\",VLOOKUP(D92,'Contenido RETSIT esp'!$A$107:$B$114,2,FALSE),IF(B92=\"MEMORIAJUSTIFICATIVA\",VLOOKUP(D92,'Contenido RETSIT esp'!$A$114:$B$145,2,FALSE),\"\")))))),\"\")","v":""}]
[null,null,{"$f":"IFERROR(VLOOKUP(B93,'Contenido RETSIT esp'!$A$2:$B$145,2,FALSE),\"\")","v":""},null,{"$f":"+_xlfn.IFNA(+IF(B93=\"ANEXO1\",VLOOKUP(D93,'Contenido RETSIT esp'!$A$3:$B$24,2,FALSE),IF(B93=\"ANEXO2\",VLOOKUP(D93,'Contenido RETSIT esp'!$A$26:$B$98,2,FALSE),IF(B93=\"ANEXO3\",VLOOKUP(D93,'Contenido RETSIT esp'!$A$100:$B$105,2,FALSE),IF(B93=\"ANEXO4\",VLOOKUP(D93,'Contenido RETSIT esp'!#REF!,2,FALSE),IF(B93=\"RESOLUCIÓN\",VLOOKUP(D93,'Contenido RETSIT esp'!$A$107:$B$114,2,FALSE),IF(B93=\"MEMORIAJUSTIFICATIVA\",VLOOKUP(D93,'Contenido RETSIT esp'!$A$114:$B$145,2,FALSE),\"\")))))),\"\")","v":""}]
[null,null,{"$f":"IFERROR(VLOOKUP(B94,'Contenido RETSIT esp'!$A$2:$B$145,2,FALSE),\"\")","v":""},null,{"$f":"+_xlfn.IFNA(+IF(B94=\"ANEXO1\",VLOOKUP(D94,'Contenido RETSIT esp'!$A$3:$B$24,2,FALSE),IF(B94=\"ANEXO2\",VLOOKUP(D94,'Contenido RETSIT esp'!$A$26:$B$98,2,FALSE),IF(B94=\"ANEXO3\",VLOOKUP(D94,'Contenido RETSIT esp'!$A$100:$B$105,2,FALSE),IF(B94=\"ANEXO4\",VLOOKUP(D94,'Contenido RETSIT esp'!#REF!,2,FALSE),IF(B94=\"RESOLUCIÓN\",VLOOKUP(D94,'Contenido RETSIT esp'!$A$107:$B$114,2,FALSE),IF(B94=\"MEMORIAJUSTIFICATIVA\",VLOOKUP(D94,'Contenido RETSIT esp'!$A$114:$B$145,2,FALSE),\"\")))))),\"\")","v":""}]
[null,null,{"$f":"IFERROR(VLOOKUP(B95,'Contenido RETSIT esp'!$A$2:$B$145,2,FALSE),\"\")","v":""},null,{"$f":"+_xlfn.IFNA(+IF(B95=\"ANEXO1\",VLOOKUP(D95,'Contenido RETSIT esp'!$A$3:$B$24,2,FALSE),IF(B95=\"ANEXO2\",VLOOKUP(D95,'Contenido RETSIT esp'!$A$26:$B$98,2,FALSE),IF(B95=\"ANEXO3\",VLOOKUP(D95,'Contenido RETSIT esp'!$A$100:$B$105,2,FALSE),IF(B95=\"ANEXO4\",VLOOKUP(D95,'Contenido RETSIT esp'!#REF!,2,FALSE),IF(B95=\"RESOLUCIÓN\",VLOOKUP(D95,'Contenido RETSIT esp'!$A$107:$B$114,2,FALSE),IF(B95=\"MEMORIAJUSTIFICATIVA\",VLOOKUP(D95,'Contenido RETSIT esp'!$A$114:$B$145,2,FALSE),\"\")))))),\"\")","v":""}]
[null,null,{"$f":"IFERROR(VLOOKUP(B96,'Contenido RETSIT esp'!$A$2:$B$145,2,FALSE),\"\")","v":""},null,{"$f":"+_xlfn.IFNA(+IF(B96=\"ANEXO1\",VLOOKUP(D96,'Contenido RETSIT esp'!$A$3:$B$24,2,FALSE),IF(B96=\"ANEXO2\",VLOOKUP(D96,'Contenido RETSIT esp'!$A$26:$B$98,2,FALSE),IF(B96=\"ANEXO3\",VLOOKUP(D96,'Contenido RETSIT esp'!$A$100:$B$105,2,FALSE),IF(B96=\"ANEXO4\",VLOOKUP(D96,'Contenido RETSIT esp'!#REF!,2,FALSE),IF(B96=\"RESOLUCIÓN\",VLOOKUP(D96,'Contenido RETSIT esp'!$A$107:$B$114,2,FALSE),IF(B96=\"MEMORIAJUSTIFICATIVA\",VLOOKUP(D96,'Contenido RETSIT esp'!$A$114:$B$145,2,FALSE),\"\")))))),\"\")","v":""}]
[null,null,{"$f":"IFERROR(VLOOKUP(B97,'Contenido RETSIT esp'!$A$2:$B$145,2,FALSE),\"\")","v":""},null,{"$f":"+_xlfn.IFNA(+IF(B97=\"ANEXO1\",VLOOKUP(D97,'Contenido RETSIT esp'!$A$3:$B$24,2,FALSE),IF(B97=\"ANEXO2\",VLOOKUP(D97,'Contenido RETSIT esp'!$A$26:$B$98,2,FALSE),IF(B97=\"ANEXO3\",VLOOKUP(D97,'Contenido RETSIT esp'!$A$100:$B$105,2,FALSE),IF(B97=\"ANEXO4\",VLOOKUP(D97,'Contenido RETSIT esp'!#REF!,2,FALSE),IF(B97=\"RESOLUCIÓN\",VLOOKUP(D97,'Contenido RETSIT esp'!$A$107:$B$114,2,FALSE),IF(B97=\"MEMORIAJUSTIFICATIVA\",VLOOKUP(D97,'Contenido RETSIT esp'!$A$114:$B$145,2,FALSE),\"\")))))),\"\")","v":""}]
[null,null,{"$f":"IFERROR(VLOOKUP(B98,'Contenido RETSIT esp'!$A$2:$B$145,2,FALSE),\"\")","v":""},null,{"$f":"+_xlfn.IFNA(+IF(B98=\"ANEXO1\",VLOOKUP(D98,'Contenido RETSIT esp'!$A$3:$B$24,2,FALSE),IF(B98=\"ANEXO2\",VLOOKUP(D98,'Contenido RETSIT esp'!$A$26:$B$98,2,FALSE),IF(B98=\"ANEXO3\",VLOOKUP(D98,'Contenido RETSIT esp'!$A$100:$B$105,2,FALSE),IF(B98=\"ANEXO4\",VLOOKUP(D98,'Contenido RETSIT esp'!#REF!,2,FALSE),IF(B98=\"RESOLUCIÓN\",VLOOKUP(D98,'Contenido RETSIT esp'!$A$107:$B$114,2,FALSE),IF(B98=\"MEMORIAJUSTIFICATIVA\",VLOOKUP(D98,'Contenido RETSIT esp'!$A$114:$B$145,2,FALSE),\"\")))))),\"\")","v":""}]
[null,null,{"$f":"IFERROR(VLOOKUP(B99,'Contenido RETSIT esp'!$A$2:$B$145,2,FALSE),\"\")","v":""},null,{"$f":"+_xlfn.IFNA(+IF(B99=\"ANEXO1\",VLOOKUP(D99,'Contenido RETSIT esp'!$A$3:$B$24,2,FALSE),IF(B99=\"ANEXO2\",VLOOKUP(D99,'Contenido RETSIT esp'!$A$26:$B$98,2,FALSE),IF(B99=\"ANEXO3\",VLOOKUP(D99,'Contenido RETSIT esp'!$A$100:$B$105,2,FALSE),IF(B99=\"ANEXO4\",VLOOKUP(D99,'Contenido RETSIT esp'!#REF!,2,FALSE),IF(B99=\"RESOLUCIÓN\",VLOOKUP(D99,'Contenido RETSIT esp'!$A$107:$B$114,2,FALSE),IF(B99=\"MEMORIAJUSTIFICATIVA\",VLOOKUP(D99,'Contenido RETSIT esp'!$A$114:$B$145,2,FALSE),\"\")))))),\"\")","v":""}]
[null,null,{"$f":"IFERROR(VLOOKUP(B100,'Contenido RETSIT esp'!$A$2:$B$145,2,FALSE),\"\")","v":""},null,{"$f":"+_xlfn.IFNA(+IF(B100=\"ANEXO1\",VLOOKUP(D100,'Contenido RETSIT esp'!$A$3:$B$24,2,FALSE),IF(B100=\"ANEXO2\",VLOOKUP(D100,'Contenido RETSIT esp'!$A$26:$B$98,2,FALSE),IF(B100=\"ANEXO3\",VLOOKUP(D100,'Contenido RETSIT esp'!$A$100:$B$105,2,FALSE),IF(B100=\"ANEXO4\",VLOOKUP(D100,'Contenido RETSIT esp'!#REF!,2,FALSE),IF(B100=\"RESOLUCIÓN\",VLOOKUP(D100,'Contenido RETSIT esp'!$A$107:$B$114,2,FALSE),IF(B100=\"MEMORIAJUSTIFICATIVA\",VLOOKUP(D100,'Contenido RETSIT esp'!$A$114:$B$145,2,FALSE),\"\")))))),\"\")","v":""}]
[null,null,{"$f":"IFERROR(VLOOKUP(B101,'Contenido RETSIT esp'!$A$2:$B$145,2,FALSE),\"\")","v":""},null,{"$f":"+_xlfn.IFNA(+IF(B101=\"ANEXO1\",VLOOKUP(D101,'Contenido RETSIT esp'!$A$3:$B$24,2,FALSE),IF(B101=\"ANEXO2\",VLOOKUP(D101,'Contenido RETSIT esp'!$A$26:$B$98,2,FALSE),IF(B101=\"ANEXO3\",VLOOKUP(D101,'Contenido RETSIT esp'!$A$100:$B$105,2,FALSE),IF(B101=\"ANEXO4\",VLOOKUP(D101,'Contenido RETSIT esp'!#REF!,2,FALSE),IF(B101=\"RESOLUCIÓN\",VLOOKUP(D101,'Contenido RETSIT esp'!$A$107:$B$114,2,FALSE),IF(B101=\"MEMORIAJUSTIFICATIVA\",VLOOKUP(D101,'Contenido RETSIT esp'!$A$114:$B$145,2,FALSE),\"\")))))),\"\")","v":""}]

{"sheet":"Contenido RETSIT gral","index":1,"n_rows":36,"n_cols":5,"rows_kept":36,"cut":false,"hidden":true,"merged":[]}
["Contenido RETSIT general"]
["ANEXO1","RESOLUCIÓN","MEMORIAJUSTIFICATIVA",null,"TIPO DE COMENTARIO"]
["TÍTULO 1. ","CONSIDERANDOS",1,null,"Editorial"]
["ARTÍCULO 1.1","RESUELVE","1.1",null,"Técnico"]
["ARTÍCULO 1.2 ","ARTÍCULO 1","1.1.1"]
["ARTÍCULO 1.3 ","ARTÍCULO 2","1.1.2"]
["ARTÍCULO 1.4 ","ARTÍCULO 3","1.1.3"]
["ARTÍCULO 1.5 ",1,"1.1.4"]
["ARTÍCULO 1.6 ",2,"1.2"]
["TÍTULO 2. ","ARTÍCULO 4","1.3"]
["ARTÍCULO 2.1 ",null,"1.3.1"]
["ARTÍCULO 2.2",null,"1.3.2"]
["ARTÍCULO 2.3 ",null,"1.3.3"]
["ARTÍCULO 2.4 ",null,"1.3.4"]
["ARTÍCULO 2.5 ",null,2]
["ARTÍCULO 2.6 ",null,3]
["TÍTULO 3.",null,"3.1"]
["ARTÍCULO 3.1 ",null,"a"]
["ARTÍCULO 3.2 ",null,"b"]
["ARTÍCULO 3.3 ",null,"c"]
["ARTÍCULO 3.4 ",null,"d"]
["ARTÍCULO 3.5",null,"e"]
["ARTÍCULO 3.6",null,"f"]
["TÍTULO 4. ",null,"g"]
["ARTÍCULO 4.1 ",null,"3.2"]
["ARTÍCULO 4.2 ",null,"3.3"]
["ARTÍCULO 4.3 ",null,"3.4"]
["TÍTULO 5. ",null,"3.5"]
["ARTÍCULO 5.1 ",null,4]
["ARTÍCULO 5.2 ",null,5]
["ARTÍCULO 5.3 ",null,6]
[null,null,7]
[null,null,"4.4"]
[null,null,"4.5"]
[null,null,5]
[null,null,6]

{"sheet":"Contenido RETSIT esp","index":2,"n_rows":145,"n_cols":2,"rows_kept":145,"cut":false,"hidden":true,"merged":[[0,0,0,1]]}
["Contenido RETSIT especifico"]
["ANEXO1","DISPOSICIONES GENERALES"]
["TÍTULO 1. ","DISPOSICIONES GENERALES"]
["ARTÍCULO 1.1","OBJETO"]
["ARTÍCULO 1.2 ","CAMPO DE APLICACIÓN"]
["1.2.1. ","INSTALACIONES"]
["1.2.2. ","PERSONAS"]
["1.2.2.1 ","Responsabilidades del diseñador"]
["1.2.2.2 ","Responsabilidad en la construcción y montaje"]
["1.2.2.3 ","Responsabilidad en la operación y mantenimiento de la instalación"]
["1.2.3. ","EXCEPCIONES EN INSTALACIONES"]
["ARTÍCULO 1.3 ","DEFINICIONES"]
["ARTÍCULO 1.4 ","ACRÓNIMOS Y SIGLAS"]
["ARTÍCULO 1.5 ","SISTEMA DE UNIDADES"]
["1.5.1. ","Unidades del SI"]
["1.5.2. ","Unidades del sistema inglés"]
["1.5.3. ","Unidades del sistema técnico"]
["1.5.4. ","Conversión de unidades"]
["ARTÍCULO 1.6 ","SIMBOLOGÍA Y SEÑALIZACIÓN"]
["TÍTULO 2. ","REQUISITOS DE LAS INSTALACIONES TÉRMICAS"]
["ARTÍCULO 2.1 ","DISEÑO Y MONTAJE"]
["2.1.1. ","Diseño de sistemas térmicos de acondicionamiento de aire"]
["2.1.2. ","Diseño de sistemas térmicos de refrigeración"]
["2.1.3. ","Distribución de aire"]
["2.1.4. ","PRESIÓN MÁXIMA PERMISIBLE"]
["2.1.4.1 ","Métodos para determinar la PS"]
["2.1.4.2 ","Relaciones de presión con la PS"]
["2.1.5.","MONTAJE DE UNIONES, CONECTORES Y TUBERÍAS"]
["2.1.5.1","Estructuras de soporte y bases para las instalaciones térmicas"]
["2.1.5.2 ","Selección de uniones y conectores"]
["2.1.5.3 ","Configuración y disposición"]
["2.1.5.4 ","Protección de tuberías, uniones y conectores"]
["2.1.5.5 ","Exposición a peligros"]
["2.1.5.6 ","Recintos ventilados"]
["2.1.5.7 ","Tuberías para accesorios y medidas"]
["2.1.5.8 ","Dispositivos de seguridad"]
["ARTÍCULO 2.2","PRUEBAS PUESTA A PUNTO"]
["2.2.1. ","PRUEBA DE RESISTENCIA A LA PRESIÓN"]
["2.2.2. ","PRUEBA DE HERMETICIDAD"]
["2.2.2.1 ","Prueba de hermeticidad de Sistemas autónomos con carga de refrigerante menor a 5 kg (11 lb)"]
["2.2.2.2 ","Prueba de hermeticidad para sistemas no previstos en el numeral 2.2.2.1"]
["2.2.3. ","VERIFICACIÓN DE LA INSTALACIÓN COMPLETA"]
["ARTÍCULO 2.3 ","IDENTIFICACIÓN Y DOCUMENTACIÓN"]
["2.3.1. ","IDENTIFICACIÓN"]
["2.3.2.","DOCUMENTACIÓN"]
["ARTÍCULO 2.4 ","OPERACIÓN Y MANTENIMIENTO"]
["2.4.1.","REPARACIÓN DE COMPONENTES QUE CONTENGAN REFRIGERAN"]
["2.4.2. ","CAMBIO DEL TIPO DE REFRIGERANTE"]
["2.4.3. ","REUTILIZACIÓN, REGENERACIÓN Y DISPOSICIÓN DEL REFRIGERANTE"]
["ARTÍCULO 2.5 ","DESEMPEÑO ENERGÉTICO"]
["ARTÍCULO 2.6 ","IMPACTO AMBIENTAL"]
["TÍTULO 3.","REQUISITOS PARA EL PROCESO DE PRODUCCIÓN Y DISTRIBUCIÓN DE ENERGÍA TÉRMICA A TRAVÉS DE DISTRITOS TÉRMICOS"]
["ARTÍCULO 3.1 ","DISEÑO Y CONFIGURACIÓN"]
["3.1.1. ","DIMENSIONAMIENTO Y DISPOSICIÓN DE LA PLANTA DE DISTRITO Y SUSCOMPONENTES"]
["3.1.1.1 ","Planta de distrito térmico"]
["3.1.1.2 ","Sala de máquinas"]
["3.1.1.3 ","Almacenamiento de energía térmica"]
["3.1.1.4 ","Sistemas de control y monitoreo."]
["3.1.2. ","DIMENSIONAMIENTO Y DISPOSICIÓN DE LA RED DE DISTRIBUCIÓN DEL DISTRITO TÉRMICO"]
["3.1.3. ","CONFIGURACIÓN DE LA CONEXIÓN PARA EL SUMINISTRO DE ENFRIAMIENTO Y CALEFACCIÓN"]
["ARTÍCULO 3.2 ","PRUEBAS PARA LA PUESTA A PUNTO Y PUESTA EN MARCHA DEL SISTEMA DE PRODUCCIÓN Y DISTRIBUCIÓN DE ENERGÍA TÉRMICA A TRAVÉS DE DISTRITOS TÉRMICOS"]
["ARTÍCULO 3.3 ","OPERACIÓN Y MANTENIMIENTO"]
["3.3.1. ","PLANEACIÓN Y EJECUCIÓN DE LA OPERACIÓN Y EL MANTENIMIENTO"]
["3.3.1.1 "," Operación"]
["3.3.1.2 "," Mantenimiento"]
["3.3.2. ","OPERACIÓN Y MANTENIMIENTO DESPUÉS DEL PUNTO DE CONEXIÓN DE SUMINISTRO"]
["ARTÍCULO 3.4 ","DOCUMENTACIÓN DEL SISTEMA DE PRODUCCIÓN Y DISTRIBUCIÓN DE ENERGÍA TÉRMICA A TRAVÉS DE DISTRITOS TÉRMICOS."]
["ARTÍCULO 3.5","DESEMPEÑO ENERGÉTICO"]
["ARTÍCULO 3.6","IMPACTO AMBIENTAL"]
["TÍTULO 4. ","DEMOSTRACIÓN DE LA CONFORMIDAD"]
["ARTÍCULO 4.1 ","PROCEDIMIENTOS DE EVALUACIÓN DE CONFORMIDAD"]
["4.1.1. "," EVALUADORES DE LA CONFORMIDAD"]
["ARTÍCULO 4.2 ","DEMOSTRACION DE CONFORMIDAD DE INSTALACIONES TÉRMICAS"]
["4.2.1."," ASPECTOS GENERALES DE LA CERTIFICACIÓN DE LA INSTALACIÓN"]
["4.2.2. "," INSTALACIONES QUE REQUIEREN DICTAMEN DE INSPECCIÓN"]
["4.2.2.1 "," Instalaciones nuevas"]
["4.2.2.2 "," Ampliaciones"]
["4.2.3.","COMPONENTES DEL DICTAMEN DE INSPECCIÓN"]
["4.2.3.1 "," Revisión periódica de las instalaciones"]
["4.2.4.","EXCEPCIONES DEL DICTAMEN DE INSPECCIÓN"]
["4.2.5. ","DECLARACIÓN DE CUMPLIMIENTO"]
["4.2.5.1 "," Declaración de cumplimiento del diseño"]
["4.2.5.2 "," Declaración de cumplimiento de la construcción y el montaje"]
["4.2.5.3 "," Declaración de cumplimiento de la operación y el mantenimiento"]
["4.2.6."," INSPECCIÓN CON FINES DE CERTIFICACIÓN"]
["ARTÍCULO 4.3 ","CERTIFICACIÓN DE PERSONAS"]
["4.3.1. "," ORGANISMOS DE CERTIFICACIÓN DE PERSONAS"]
["4.3.1.1 "," Requisitos de inspectores de instalaciones térmicas"]
["4.3.2."," ESQUEMA DE CERTIFICACIÓN DE INSPECTORES"]
["4.3.3. "," ÁREAS DE CERTIFICACIÓN"]
["4.3.4. "," CATEGORÍAS O ÁMBITOS DE LA CERTIFICACIÓN"]
["4.3.5. "," COMPETENCIAS REQUERIDAS"]
["4.3.5.1 "," Prerrequisitos de inspectores de instalaciones térmicas"]
["4.3.6. ","VIGENCIA DE LOS CERTIFICADOS PARA INSPECTORES"]
["4.3.7.","CÓDIGO DE CONDUCTA"]
["4.3.8. "," FORMATOS DE DECLARACIÓN DE CUMPLIMIENTO"]
["4.3.8.1 "," Formato de declaración de cumplimiento del diseño"]
["4.3.8.2 "," Formato de declaración de cumplimiento de la construcción y montaje"]
["4.3.8.3 "," Formato de declaración de cumplimiento de la operación y mantenimiento"]
["4.3.9. F","FORMATO PARA EL DICTAMEN DE INSPECCIÓN"]
["4.3.9.1 "," Formato para dictamen de inspección"]
["TÍTULO 5. "," VIGILANCIA, CONTROL Y VIGENCIA"]
["ARTÍCULO 5.1 ","ENTIDADES DE VIGILANCIA Y CONTROL"]
["ARTÍCULO 5.2 ","RÉGIMEN SANCIONATORIO"]
["ARTÍCULO 5.3 ","INTERPRETACIÓN, REVISIÓN Y ACTUALIZACIÓN DEL REGLAMENTO TÉCNICO"]
["RESOLUCIÓN","Por la cual se expide el nuevo Reglamento Técnico de Instalaciones Térmicas RETSIT"]
["CONSIDERANDOS","CONSIDERANDOS"]
["RESUELVE","RESUELVE"]
["ARTÍCULO 1","OBJETO"]
["ARTÍCULO 2","ÁMBITO DE APLICACIÓN"]
["ARTÍCULO 3","DISPOSICIONES TRANSITORIAS"]
[1,"TRANSITORIEDAD PARA INSTALACIONES"]
[2,"TRANSITORIEDAD PARA PERSONAS"]
["ARTÍCULO 4","VIGENCIA Y DEROGATORIAS"]
["MEMORIAJUSTIFICATIVA","MEMORIA JUSTIFICATIVA"]
[1,"ANTECEDENTES Y RAZONES DE OPORTUNIDAD Y CONVENIENCIA QUE JUSTIFICAN SU EXPEDICIÓN."]
["1.1","ANTECEDENTES"]
["1.1.1","Análisis de impacto normativo"]
["1.1.2","Elaboración documento anteproyecto"]
["1.1.3","Etapa de buenas prácticas Reglamentarias"]
["1.1.4","Consulta pública nacional"]
["1.2","RAZONES DE OPORTUNIDAD"]
["1.3","CONVENIENCIA"]
["1.3.1","Respecto del Anexo 1 - Generalidades"]
["1.3.2","Respecto del Anexo 2 - Productos"]
["1.3.3","Respecto del Anexo 3 - Instalaciones"]
["1.3.4","Respecto del Anexo 4 - Demostración de la conformidad"]
[2,"ÁMBITO DE APLICACIÓN Y SUJETOS A QUIENES VA DIRIGIDO"]
[3,"VIABILIDAD JURÍDICA"]
["3.1","Análisis de las normas que otorgan la competencia para la expedición del proyecto normativo"]
["a","Artículo 78 de Constitución Política de Colombia:"]
["b","Artículo 189 de Constitución Política de Colombia"]
["c","Artículo 59 de la Ley 489 de 1998"]
["d","Artículo 61 de la Ley 489 de 1998"]
["e","Numeral 9 del artículo 2° del Decreto 381 de 2012"]
["f","Numeral 7 del artículo 5° del Decreto 381 de 2012, modificado por el artículo 5 del Decreto 030 de 2022"]
["g","Numeral 3 del artículo 16° del Decreto 381 de 2012"]
["3.2","Vigencia de la ley o norma reglamentada o desarrollada"]
["3.3","Disposiciones derogas, subrogadas, modificadas, adicionadas o sustituidas "]
["3.4","Revisión y análisis de la jurisprudencia que tenga impacto o sea relevante para la expedición del proyecto normativo (órganos de cierre de cada jurisdicción)"]
["3.5","Circunstancias jurídicas adicionales "]
[4,"IMPACTO ECONÓMICO"]
[5,"VIABILIDAD O DISPONIBILIDAD PRESUPUESTAL"]
[6,"IMPACTO MEDIOAMBIENTAL O SOBRE EL PATRIMONIO CULTURAL DE LA NACIÓN"]
[7,"ESTUDIOS TÉCNICOS QUE SUSTENTEN EL PROYECTO NORMATIVO (Si cuenta con ellos) "]

{"sheet":"Hoja1","index":3,"n_rows":40,"n_cols":1,"rows_kept":40,"cut":false,"hidden":true,"merged":[]}
["Por la cual se expide el nuevo Reglamento Técnico de Instalaciones Eléctricas - RETIE "]
["CONSIDERANDOS"]
["RESUELVE"]
["OBJETO"]
["ÁMBITO DE APLICACIÓN"]
["DISPOSICIONES TRANSITORIAS"]
["TRANSITORIEDAD INSTALACIONES"]
["TRANSITORIEDAD PERSONAS"]
["VIGENCIA Y DEROGATORIAS"]
["MEMORIA JUSTIFICATIVA"]
["ANTECEDENTES Y RAZONES DE OPORTUNIDAD Y CONVENIENCIA QUE JUSTIFICAN SU EXPEDICIÓN."]
["ANTECEDENTES"]
["Análisis de impacto normativo"]
["Elaboración documento anteproyecto"]
["Etapa de buenas prácticas Reglamentarias"]
["Consulta pública nacional"]
["RAZONES DE OPORTUNIDAD"]
["CONVENIENCIA"]
["Respecto del Anexo 1 - Generalidades"]
["Respecto del Anexo 2 - Productos"]
["Respecto del Anexo 3 - Instalaciones"]
["Respecto del Anexo 4 - Demostración de la conformidad"]
["ÁMBITO DE APLICACIÓN Y SUJETOS A QUIENES VA DIRIGIDO"]
["VIABILIDAD JURÍDICA"]
["Análisis de las normas que otorgan la competencia para la expedición del proyecto normativo"]
["Artículo 78 de Constitución Política de Colombia:"]
["Artículo 189 de Constitución Política de Colombia"]
["Artículo 59 de la Ley 489 de 1998"]
["Artículo 61 de la Ley 489 de 1998"]
["Numeral 9 del artículo 2° del Decreto 381 de 2012"]
["Numeral 7 del artículo 5° del Decreto 381 de 2012, modificado por el artículo 5 del Decreto 030 de 2022"]
["Numeral 3 del artículo 16° del Decreto 381 de 2012"]
["Vigencia de la ley o norma reglamentada o desarrollada"]
["Disposiciones derogas, subrogadas, modificadas, adicionadas o sustituidas "]
["Revisión y análisis de la jurisprudencia que tenga impacto o sea relevante para la expedición del proyecto normativo (órganos de cierre de cada jurisdicción)"]
["Circunstancias jurídicas adicionales "]
["IMPACTO ECONÓMICO"]
["VIABILIDAD O DISPONIBILIDAD PRESUPUESTAL"]
["IMPACTO MEDIOAMBIENTAL O SOBRE EL PATRIMONIO CULTURAL DE LA NACIÓN"]
["ESTUDIOS TÉCNICOS QUE SUSTENTEN EL PROYECTO NORMATIVO (Si cuenta con ellos) "]